Workbook

Sheet 2019
A1: AGIRIA - Expediente | B1: NOIZ - Fecha Dto. | C1: NORI - Adjudicatario | D1: IZF/NAN - CIF/DNI | E1: ZENBATEKOA BEZa barik - Importe sin IVA | F1: ZENBATEKOA BEZ barne - Importe con IVA | G1: ZER - Concepto | H1: IRAUPENA - Duración | I1: AMAIERA DATA - Fecha finalización | J1: OHARRAK - Observaciones
A2: ADO2 | B2: 01/03 a 30/06 | C2: A. INDE EDUCA,S.L. | D2: B95167060 | E2: 118.5041322 | F2: 143.39 | G2: SUMINISTRO DE SOPORTE PELOTAS GIGANTES...PARA SAKONETA.-FRA. 2019/232 PP Nº 17/19
A3: ADO1 | B3: 01/01 a 30/03 | C3: A. INDE EDUCA,S.L. | D3: B95167060 | E3: 296 | F3: 358.16 | G3: IMPORTE TBJOS DE REPARACION DE MARCADOR SASKIBALOIA EN POLI KANDELAZ.-FRA. 2019/60 PP Nº 5/19
A4: ADO2 | B4: 01/03 a 30/06 | C4: A. INDE EDUCA,S.L. | D4: B95167060 | E4: 306.5041322 | F4: 370.87 | G4: SUMINISTRO DE CINTURON AQUAROBIC....PARA SAKONETA.-FRA. 2019/246 PP Nº 17/19
A5: ADO1 | B5: 01/01 a 30/03 | C5: ABRA IMPORTACIONES,S.L. | D5: B95302949 | E5: 146.0826446 | F5: 176.76 | G5: IMPORTE BOTELLAS PERSONALIZADAS ALCALDIA F.190119 PP Nº 11/19
A6: ADO2 | B6: 01/03 a 30/06 | C6: ABRA IMPORTACIONES,S.L. | D6: B95302949 | E6: 373.5041322 | F6: 451.94 | G6: 150 BOTELLAS DE CRISTAL CON FUNDA NEOPRENO PERSONALIZADAS Y CON LOGOTIPO A 1 TINTA-FC.190245 PP Nº 23/19
A7: ADO2 | B7: 01/03 a 30/06 | C7: ABRA SEGURIDAD, S.L. | D7: B95444733 | E7: 45 | F7: 54.45 | G7: IMPORTE ASISTENCIA TECNICA .-FRA. 908100139 PP Nº 8/19
A8: 76 | B8: 2019-05-20 | C8: ACIDEKA SL | D8: A48093926 | E8: 247.06 | F8: 298.9426 | G8: Suministro a tramitar a través de compras | J8: factura 758387 pedido 403
A9: 76 | B9: 2019-05-20 | C9: ACIDEKA SL | D9: A48093926 | E9: 271.97 | F9: 329.0837 | G9: Suministro a tramitar a través de compras | J9: factura 758388 pedio 403
A10: 76 | B10: 2019-06-17 | C10: ACIDEKA SL | D10: A48093926 | E10: 903.75 | F10: 1093.5375 | G10: Suministro a tramitar a través de compras | J10: Factura 759866 nº pedido 504
A11: 76 | B11: 2019-05-09 | C11: ACIDEKA SL | D11: A48093926 | E11: 903.75 | F11: 1093.5375 | G11: Suministro a tramitar a través de compras | J11: Factura 757933 Nº pedido 380
A12: 76 | B12: 2019-06-12 | C12: ACIDEKA SL | D12: A48093926 | E12: 1137.22 | F12: 1376.0362 | G12: Suministro a tramitar a través de compras | J12: Factura 759694
A13: 76 | B13: 2019-01-15 | C13: ACIDEKA SL | D13: A48093926 | E13: 3203.38 | F13: 3876.09 | G13: Suministro a tramitar a través de compras | H13: PUNTUAL | I13: 2019-03-30
A14: 141 | B14: 2019-01-18 | C14: ADOS INFORMATICA, SL | D14: B95792784 | E14: 5457.39 | F14: 6603.4419 | G14: Mantenimiento de las Aplicaciones Informáticas para: 1. Gestión de Compras y Almacenes A2 COMP; 2. Registro y Conformación de Facturas A2REGFAC; 3.Gestión de Inventario y Patrimonio A2INVEN | H14: 12 Meses | I14: 2019-12-31
A15: 5 | B15: 2019-01-07 | C15: Ados Teatroa S.L. | D15: B20567400 | E15: 990 | F15: 1197.9 | G15: Actuación de Teatro "El baile de los años"
A16: 484 | B16: 2019-05-07 | C16: Adsis Fundazioa | D16: G81436099 | E16: 316 | F16: 382.36 | G16: Raseo parred cobertizo patio Primaria Ikastola Altzaga | H16: PUNTUAL
A17: ADO2 | B17: 01/03 a 30/06 | C17: AED- ARRASATE EUSKALDUN DEZAGUN | D17: G20178133 | E17: 743.8016529 | F17: 900 | G17: IMPORTE SERV DE ACTUACION BUAH TXABAL .-FRA. 19003 PP Nº 13/19
A18: ADO2 | B18: 01/03 a 30/06 | C18: AEROCAD ROTULACIONES SL | D18: B95528519 | E18: 323 | F18: 390.83 | G18: IMPORTE DESROTULACION Y ROTULACION DE PUERTAS DEL VEHICULO 3598JKJ DE POLICIA.-FRA. B19/0142 PP Nº22/19
A19: 625 | B19: 2019-05-30 | C19: AGLOMERADOS DOS R S.L. | D19: B53038055 | E19: 15000 | F19: 18150 | G19: Suministro a tramitar a través de compras | H19: 7 Meses | I19: 2019-03-30
A20: ADO2 | B20: 01/03 a 30/06 | C20: AGROJARDIN ASTIKENE S.L. | D20: B95583340 | E20: 207.446281 | F20: 251.01 | G20: SUMINISTRO DE SACO RECOGEDOR, CORREA, SPRAY...PARA JARDINERIA.-FRA. 19/00206 PP Nº 5/19
A21: ADO2 | B21: 01/03 a 30/06 | C21: AGROJARDIN ASTIKENE S.L. | D21: B95583340 | E21: 391.5371901 | F21: 473.76 | G21: SUMINISTRO DE SPRAY ANTIRESINA, CABLE EMBRAGUE, FILTRO ACEITE...JARDINERIA.-FRA. 19/00859 PP Nº 13/19
A22: ADO2 | B22: 01/03 a 30/06 | C22: AGROJARDIN ASTIKENE S.L. | D22: B95583340 | E22: 478.4793388 | F22: 578.96 | G22: SUMINISTRO DE MATERIAL PARA JARDINERIA.-FRA. 19/01662 PP Nº 22/19
A23: 77 | B23: 2019-09-30 | C23: AGROJARDIN ASTIKENE SL | D23: B95583340 | E23: 104.96 | F23: 127.0016 | G23: Suministro a tramitar a través de compras | J23: Factura 18/03012
A24: 77 | B24: 2019-04-30 | C24: AGROJARDIN ASTIKENE SL | D24: B95583340 | E24: 736.9 | F24: 891.649 | G24: Suministro a tramitar a través de compras | J24: Factura 19/01218 (no pedido por compras)
A25: 316 | B25: 2019-03-08 | C25: AGROJARDIN ASTIKENE SL | D25: B95583340 | E25: 1383.02 | F25: 1673.4542 | G25: Reparaciones del mes de Febrero 2019_jardineria
A26: 205 | B26: 2019-02-08 | C26: AGROJARDIN ASTIKENE SL | D26: B95583340 | E26: 1393.38 | F26: 1685.9898 | G26: Reparación mes Enero
A27: 77 | B27: 2019-01-15 | C27: AGROJARDIN ASTIKENE SL | D27: B95583340 | E27: 1569.14 | F27: 1898.6594 | G27: Suministro a tramitar a través de compras | H27: PUNTUAL | I27: 2019-03-30
A28: 485 | B28: 2019-05-07 | C28: AGROJARDIN ASTIKENE SL | D28: B95583340 | E28: 1781.48 | F28: 2155.5908 | G28: Reparación de la maquinaria de jardinería mes de Abril de 2019
A29: 341 | B29: 2019-04-10 | C29: AGROJARDIN ASTIKENE SL | D29: B95583340 | E29: 2011.61 | F29: 2434.0481 | G29: Reparación de maquinaria de jardineria mes Marzo 2019
A30: 644 | B30: 2019-06-04 | C30: AGROJARDIN ASTIKENE SL | D30: B95583340 | E30: 2338.9 | F30: 2830.069 | G30: Reparación de la maquinaria de jardinería mes de Mayo de 2019
A31: 77 | B31: 2019-05-31 | C31: AGROJARDIN ASTIKENE SL | D31: B95583340 | E31: 7699.16 | F31: 9315.9836 | G31: Suministro a tramitar a través de compras | J31: Factura 19/01661
A32: 372 | B32: 2019-04-05 | C32: Aire Aire Distribución de espectáculos S.L. | D32: B95230918 | E32: 1600 | F32: 1936 | G32: Actuación "El Baker´s Saloon" Umore Azoka 2019
A33: 397 | B33: 2019-04-05 | C33: Aire Aire Distribución de espectáculos S.L. | D33: B95230918 | E33: 3500 | F33: 4235 | G33: Actuación "Koselig" Umore Azoka 2019
A34: 398 | B34: 2019-04-05 | C34: Aire Aire Distribución de espectáculos S.L. | D34: B95230918 | E34: 3500 | F34: 4235 | G34: Actuación "JO-JO" Umore Azoka 2019 | J34: Procede: CM-736/18
A35: 748 | B35: 2019-06-18 | C35: Aire Aire Distribución de espectáculos S.L. | D35: B95230918 | E35: 3700 | F35: 4477 | G35: LAS XL San Juan Jaiak
A36: 313 | B36: 2019-03-06 | C36: Aitor Lachaga García | D36: 14608735D | E36: 3240 | F36: 3920.4 | G36: Camisetas II Emakumeen Martxa
A37: 782 | B37: 2019-06-14 | C37: Aitor Lachaga García | D37: 14608735D | E37: 3675 | F37: 4446.75 | G37: Camisetas serigrafiadas para campaña UDA 2019 | H37: PUNTUAL
A38: 311 | B38: 2019-03-06 | C38: Aitziber Aguinagalde Bilbao | D38: 16070631W | E38: 140 | F38: 140 | G38: Charla "Economía feminist"
A39: 238 | B39: 2019-02-15 | C39: Aixerrota Producciones S.L. | D39: B48669444 | E39: 2400 | F39: 2904 | G39: Gestión adquisición de premios, etc…
A40: ADO2 | B40: 01/03 a 30/06 | C40: AJA SANCHEZ M.R. | D40: 16044762P | E40: 27.29752066 | F40: 33.03 | G40: IMPORTE MATERIAL TALLERES KULTUR F.3680 PP Nº 21/19
A41: 53 | B41: 2019-01-09 | C41: Aken, S.Coop. Peq | D41: F95820593 | E41: 1700 | F41: 1700 | G41: Impartición acción formativa "Introducción a la empresa y gestión empresarial"
A42: 582 | B42: 2019-05-21 | C42: Aken, S.Coop. Peq | D42: F95820593 | E42: 1700 | F42: 1700 | G42: Impartición acción formativa “ Introducción a la empresa y gestión empresarial”
A43: 812 | B43: 2019-06-20 | C43: Aken, S.Coop. Peq | D43: F95820593 | E43: 1700 | F43: 1700 | G43: Acción formativa "Introducción a la empresa y gestión empresarial
A44: 622 | B44: 2019-05-29 | C44: AKROPOST | D44: A95265195 | E44: -15.4958 | F44: -18.749918 | G44: Actualizar fact Akropost Concurso Pop Rock Gaztegune | J44: Procede: CM-642/2018 Dec. 2725/2018
A45: 167 | B45: 2019-01-29 | C45: AKROPOST | D45: A95265195 | E45: 15.057 | F45: 18.21897 | G45: Ampliar Fact. Akropost programa Gabonak Gaztegune
A46: 317 | B46: 2019-03-08 | C46: AKROPOST | D46: A95265195 | E46: 14.95 | F46: 18.92 | G46: Servicios postales | H46: PUNTUAL | J46: Procede: CM-693/18
A47: 629 | B47: 2019-06-03 | C47: AKROPOST | D47: A95265195 | E47: 16 | F47: 19.36 | G47: Envíos cartelería | J47: Procede: CM-497/2019 Dec. 1487
A48: 469 | B48: 2019-04-25 | C48: Akropost | D48: A95265195 | E48: 44.7 | F48: 54.087 | G48: Envíos cartelería y dípticos
A49: 155 | B49: 2019-01-24 | C49: AKROPOST | D49: B95135075 | E49: 338.22 | F49: 409.2462 | G49: Campaña de Prematriculación: ENVÍO de materiales | H49: PUNTUAL
A50: 342 | B50: 2019-03-15 | C50: AKROPOST | D50: A95265195 | E50: 636.3 | F50: 769.923 | G50: Colocacion de bandos en portales del IVTM 2019 | H50: PUNTUAL
A51: 174 | B51: 2019-01-29 | C51: AKROPOST | D51: A95265195 | E51: 1885.28 | F51: 2281.1888 | G51: Recogida-reparto correspondencia entre ayto y otras áreas | H51: 3 Meses | I51: 2019-03-30
A52: 427 | B52: 2019-04-04 | C52: AKROPOST | D52: A95265195 | E52: 2241.39 | F52: 2712.0819 | G52: Ampliación importe CM 174/2019-Decreto 382/2019
A53: 234 | B53: 2019-02-15 | C53: Akropost - Servicios postales | D53: A95265195 | E53: 92.3 | F53: 111.683 | G53: Envíos dípticos y carteles
A54: ADO2 | B54: 01/03 a 30/06 | C54: AKROPOST SERVICIOS POSTALES | D54: A95265195 | E54: 40.61157025 | F54: 49.14 | G54: IMPORTE DISTRIBUCION PUBLIENVIOS BEHARGINTZA F.190144 PP Nº 12/19
A55: ADO2 | B55: 01/03 a 30/06 | C55: AKROPOST SERVICIOS POSTALES | D55: A95265195 | E55: 63.19834711 | F55: 76.47 | G55: IMPORTE ENTREGA DE 16 ENVIO DE FOLLETOS INFORMATIVOS NUEVA OFERTA FORMATIVA BEHARGINTZA.-FRA. 190049- PROP.PAGOS Nº7/19
A56: 588 | B56: 2019-05-22 | C56: Akropost-Servicios postales | D56: A95265195 | E56: 325 | F56: 393.25 | G56: Envío difusión a domicilio a los/as jóvenes que cumplen las condiciones para participar en el programa
A57: 590 | B57: 2019-05-23 | C57: ALABAZAS S.COOP | D57: F95653010 | E57: 1890 | F57: 2079 | G57: Ipuin Kontalaria | H57: PUNTUAL
A58: 169 | B58: 2019-01-29 | C58: Alaiki Zerbitzu Gizakulturalak S.L. | D58: B48910525 | E58: -34.472 | F58: -37.92 | G58: Minorar Fact. Alaiki Zerbitzu Gizakulturalak S.L. programa Gabonak Gaztegune
A59: 323 | B59: 2019-03-13 | C59: Alaiki Zerbitzu Gizakulturalak S.L. | D59: B48910525 | E59: 635 | F59: 768.35 | G59: Aurresku y Txistularis
A60: 743 | B60: 2019-06-18 | C60: Alaiki Zerbitzu Gizakulturalak S.L. | D60: B48910525 | E60: 1620 | F60: 1960.2 | G60: Txistu saioak San Juan Jaiak
A61: 744 | B61: 2019-06-18 | C61: Alaiki Zerbitzu Gizakulturalak S.L. | D61: B48910525 | E61: 3510 | F61: 4247.1 | G61: Los Txikis + Arantza eta Pantxo + amigos del Swing San Juan Jaiak
A62: ADO2 | B62: 01/03 a 30/06 | C62: ALAIKI ZERBITZU GIZAKULTURALAK, S.L. | D62: B48910525 | E62: 360 | F62: 435.6 | G62: IMPORTE Grabación contestador automático POLICIA F.A-212.19 PP Nº 23/19
A63: 750 | B63: 2019-06-18 | C63: Albe Getxo | D63: G48725881 | E63: 2070 | F63: 2070 | G63: Bertso Saioa San Juan Jaiak | J63: Procede: CM-503/2019 Dec. 1487
A64: ADO2 | B64: 01/03 a 30/06 | C64: ALBERDI MAKILA SLU | D64: B75098533 | E64: 861.1404959 | F64: 1041.98 | G64: IMPORTE MAKILA HONOR ALCALDIA F.11.647 PP Nº 22/19
A65: 715 | B65: 2019-06-13 | C65: ALFILSTORE S.L. | D65: B95818993 | E65: 312 | F65: 377.52 | G65: MOTXILAK OPORRAK BAKEAN | H65: PUNTUAL | I65: 2019-07-04 | J65: Procede: CM-375/2019 Dec. 1165
A66: 353 | B66: 2019-04-01 | C66: Alges Leioa SL | D66: B95517132 | E66: 986.5 | F66: 1193.665 | G66: Suministro e intsalacion Motores Toldos exteriores. Hogar de Lamiako
A67: 299 | B67: 2019-03-06 | C67: Alges Leioa SL | D67: B95517132 | E67: 1261 | F67: 1525.81 | G67: Ampliar factura Alges Leioa SL reconstruccion muro Begoñako Ama
A68: 74 | B68: 2019-01-14 | C68: Alges Leioa SL | D68: B95517132 | E68: 1306.25 | F68: 1580.5625 | G68: Arreglo de canastas Txomin Aresti | H68: PUNTUAL
A69: 617 | B69: 2019-06-07 | C69: Alges Leioa SL | D69: B95517132 | E69: 1384 | F69: 1674.64 | G69: Suministro y sustitucion de nuevo motor en persiana de behargintza
A70: 273 | B70: 2019-02-27 | C70: Alges Leioa SL | D70: B95517132 | E70: 1622.5 | F70: 1963.225 | G70: Suministro piezas reparaciones bancos
A71: 146 | B71: 2019-01-23 | C71: Alges Leioa SL | D71: B95517132 | E71: 1628.3 | F71: 1970.243 | G71: Reparación barandilla Monte Ikea
A72: 38 | B72: 2019-01-08 | C72: Alges Leioa SL | D72: B95517132 | E72: 1986.3 | F72: 2403.423 | G72: Reparacion persiana Hogar Errekalde | H72: PUNTUAL
A73: 366 | B73: 2019-04-11 | C73: Alges Leioa SL | D73: B95517132 | E73: 2770.9 | F73: 3352.789 | G73: Suministro e instalacion de mecanismos manuales en persianas Ikastola Altzaga
A74: 73 | B74: 2019-01-14 | C74: Alges Leioa SL | D74: B95517132 | E74: 4216.4 | F74: 5101.844 | G74: Arreglos en Instalaciones deportivas de sarriena | H74: PUNTUAL
A75: 611 | B75: 2019-05-31 | C75: Alges Leioa SL | D75: B95517132 | E75: 4849 | F75: 5867.29 | G75: colegio Lamiako Pintura frontón. | J75: Procede: CM-498/2019 Dec. 1487
A76: 276 | B76: 2019-02-28 | C76: Alges Leioa SL | D76: B95517132 | E76: 4917.5 | F76: 5950.175 | G76: Reparacion puente de madera Pinosolo
A77: 616 | B77: 2019-06-13 | C77: Alges Leioa SL | D77: B95517132 | E77: 6833.1 | F77: 8268.051 | G77: colegio Lamiako suministro y colocacion de policarbonato entrada.
A78: 331 | B78: 2019-04-01 | C78: Alges Leioa SL | D78: B95517132 | E78: 28672.89 | F78: 34694.1969 | G78: Reconstrucción barandillas Iturribide
A79: ADO2 | B79: 01/03 a 30/06 | C79: ALGES LEIOA, S.L. | D79: B95517132 | E79: 85.50413223 | F79: 103.46 | G79: IMPORTE SUMINISTRO Y COLOCACION DE MANILLA EN CP LAMIAKO.-. FRA 19071 PP Nº 14/19
A80: ADO2 | B80: 01/03 a 30/06 | C80: ALGES LEIOA, S.L. | D80: B95517132 | E80: 148.6033058 | F80: 179.81 | G80: IMPORTE SOLDAR PUERTA ENTRADA A CASERIO DEL PARQUE PINOSOLO.-FRA. 19106 PP Nº 22/19
A81: ADO2 | B81: 01/03 a 30/06 | C81: ALGES LEIOA, S.L. | D81: B95517132 | E81: 150.5041322 | F81: 182.11 | G81: IMPORTE SOLDAR ARQUETAS EN EL BARRIO ITURRIBIDE.-FRA. 19108 PP Nº 22/19
A82: ADO1 | B82: 01/01 a 30/03 | C82: ALGES LEIOA, S.L. | D82: B95517132 | E82: 156 | F82: 188.76 | G82: IMPORTE COLOCACION DE MANILLA Y CERROJO EN LOCAL EISE.-FRA. 19046 PP Nº 11/19
A83: ADO2 | B83: 01/03 a 30/06 | C83: ALGES LEIOA, S.L. | D83: B95517132 | E83: 195.1983471 | F83: 236.19 | G83: IMPORTE SERV DESMONTAJE PUERTA CAMBIAR BISAGRA EN POLIDEPORT.- FRA. 19049 PP Nº 16/19
A84: ADO2 | B84: 01/03 a 30/06 | C84: ALGES LEIOA, S.L. | D84: B95517132 | E84: 211.5041322 | F84: 255.92 | G84: IMPORTE COLOCACION Y SUMINISTRO DE SENSORES DE VIENTO PARA EL TOLDO DEL HOGAR JUB LAMIAKO.-FRA. 19089 PP Nº 18/19
A85: ADO1 | B85: 01/01 a 30/03 | C85: ALGES LEIOA, S.L. | D85: B95517132 | E85: 220 | F85: 266.2 | G85: IMPORTE REPARACION DE VERJA DE LA IKASTOLA ALTZAGA.-FRA. 19008 PP Nº 8/19
A86: ADO2 | B86: 01/03 a 30/06 | C86: ALGES LEIOA, S.L. | D86: B95517132 | E86: 363.1983471 | F86: 439.47 | G86: IMPORTE REPARACION DE PUERTA BASCULANTE DE JARDINEROS.-FRA. 19120 PP Nº 24/19
A87: ADO2 | B87: 01/03 a 30/06 | C87: ALGES LEIOA, S.L. | D87: B95517132 | E87: 390 | F87: 471.9 | G87: IMPORTE SELLAR ENTRADA AGUA EN TRASLUCIDOS EN PINOSOLO.-FRA. 19107 PP Nº 22/19
A88: ADO1 | B88: 01/01 a 30/03 | C88: ALGES LEIOA, S.L. | D88: B95517132 | E88: 517.1404959 | F88: 625.74 | G88: SUMINISTRO Y COLOCACION DE PASAMANOS DE ESCALERA EN TXOMIN ARESTI.-FRA. 19022 PP Nº 10/19
A89: ADO2 | B89: 01/03 a 30/06 | C89: ALGES LEIOA, S.L. | D89: B95517132 | E89: 545.2975207 | F89: 659.81 | G89: IMPORTE DE REPARACION DE BARANDILLA CURVA EN MONTE IKEA.-FRA. 19122 PP Nº 23/19
A90: ADO2 | B90: 01/03 a 30/06 | C90: ALGES LEIOA, S.L. | D90: B95517132 | E90: 565.1983471 | F90: 683.89 | G90: IMPORTE REPARASO BARANDILLA DE PIES EN MENDIBILOSTEKOA.-FR.A 19121 PP Nº 24/19
A91: ADO1 | B91: 01/01 a 30/03 | C91: ALGES LEIOA, S.L. | D91: B95517132 | E91: 585.1983471 | F91: 708.09 | G91: IMPROTE REPARACION DE LA BARANDILLA DEL PARQUE DE LA IGLESIA.-FR.A 19007 PP Nº 5/19
A92: ADO2 | B92: 01/03 a 30/06 | C92: ALGES LEIOA, S.L. | D92: B95517132 | E92: 653.9008264 | F92: 791.22 | G92: IMPORTE REPARACION DE BIONDA EN PERURI AUZOA.-FRA. 19119 PP Nº 23/19
A93: ADO1 | B93: 01/01 a 30/03 | C93: ALGES LEIOA, S.L. | D93: B95517132 | E93: 664.4049587 | F93: 803.93 | G93: SUMINISTRO Y COLOCACION DE VIDRIO LAMINAR EN POLID SAKONETA.-FRA. 19021 PP Nº 9/19
A94: ADO2 | B94: 01/03 a 30/06 | C94: ALGES LEIOA, S.L. | D94: B95517132 | E94: 734.3966942 | F94: 888.62 | G94: IMPORTE SUMINISTRO Y COLOCACION DE UN EJE MOTIR PERSIANA SERV SOCIALES.- FRA. 19073 PP Nº 14/19
A95: ADO2 | B95: 01/03 a 30/06 | C95: ALGES LEIOA, S.L. | D95: B95517132 | E95: 824.9421488 | F95: 998.18 | G95: IMPORTE REPARACION DE BARANDILLA EN GAZTELUBIDE.-FRA. 19118 PP Nº 24/19
A96: ADO2 | B96: 01/03 a 30/06 | C96: ALGES LEIOA, S.L. | D96: B95517132 | E96: 886.5041322 | F96: 1072.67 | G96: IMPORTE CIERRE DE MALLA GALVANIZADA EN CL LAMIAKO.-FRA. 19117 PP Nº 23/19
A97: ADO2 | B97: 01/03 a 30/06 | C97: ALGES LEIOA, S.L. | D97: B95517132 | E97: 953.1983471 | F97: 1153.37 | G97: IMPORTE REPARACION BALAUSTRADA PARKING CIVICO.-FRA. 19060 PP Nº 14/19
A98: 627 | B98: 2019-05-31 | C98: Alicia Guede Freire | D98: 30640482C | E98: 2.7933 | F98: 3.379893 | G98: Minorar fact Alicia Guede Freire programa Concurso Jovenes Pintores Gazteleku
A99: 470 | B99: 2019-04-25 | C99: Alicia Guede Freire | D99: 30640482C | E99: 152.42 | F99: 184.4282 | G99: Cesta para los/as jurados (2 cestas)
A100: 122 | B100: 2019-01-16 | C100: Alicia Suarez S.L. | D100: B95038220 | E100: -63.7355 | F100: -77.119955 | G100: Minorar Fact. Alicia Suarez Gabonak 2018
A101: ADO1 | B101: 01/01 a 30/03 | C101: ALONSO DEL VAL VICTOR | D101: 14241971A | E101: 220 | F101: 266.2 | G101: IMPORTE TAPIZADO DE DOS ASIENTOS CON RESPALDO PARA SAKONETA.-FRA. 11 PP Nº 10/19
A102: ADO1 | B102: 01/01 a 30/03 | C102: ALVAREZ RUBIO SAMUEL | D102: 30630799C | E102: 400 | F102: 484 | G102: IMPORTE RECORRIDO TECNICO PARA VALOARCION DEL ESTADO ZONAS CON ARBOLADO.-FRA. 19-014 PP Nº 8/19
A103: 384 | B103: 2019-04-05 | C103: Álvaro Manso Asensio | D103: 72489557C | E103: 500 | F103: 605 | G103: Actuación "Reportero ON FIRE" Umore Azoka 2019
A104: 667 | B104: 2019-06-06 | C104: Amaia de Goñi Alonso (Kurkudi Herriko Taberna) | D104: 16094359V | E104: 178.512 | F104: 215.99952 | G104: Ampliar Fact. Amaia de Goñi (Kurkudi Herriko Taberna) Umore Azoka 2019
A105: ADO2 | B105: 01/03 a 30/06 | C105: AMAIA SIGLO XXI, S.L. | D105: B95248787 | E105: 53.26446281 | F105: 64.45 | G105: IMPORTE DESAYUNOS EMPLEO BEHARGINTZA F.1213 PP Nº 17/19
A106: ADO2 | B106: 01/03 a 30/06 | C106: AMAIA SIGLO XXI, S.L. | D106: B95248787 | E106: 57.19008264 | F106: 69.2 | G106: importe desayunos behargintza F.1217 PP Nº 23/19
A107: ADO1 | B107: 01/01 a 30/03 | C107: AMAIA SIGLO XXI, S.L. | D107: B95248787 | E107: 63.63636364 | F107: 77 | G107: IMPORTE DESAYUNOS BEHARGINTZA F.1.200 PP Nº 10/19
A108: 835 | B108: 2019-06-25 | C108: Ambuiberica | D108: B47484530 | E108: 225 | F108: 225 | G108: Asistencia snitaria Mundialito 2019 | J108: Procede: CM-518/2019 Dec. 1487
A109: 607 | B109: 2019-05-27 | C109: Ambuiberica | D109: B47484530 | E109: 375 | F109: 375 | G109: Asistencia sanitaria torneo fútbol femenino 8 de junio | H109: PUNTUAL
A110: 574 | B110: 2019-05-20 | C110: Ambuiberica | D110: B47484530 | E110: 412.5 | F110: 412.5 | G110: Asistencia sanitaria campeonato G. Rítmica 2 de junio | H110: PUNTUAL | I110: 2019-06-02
A111: 575 | B111: 2019-05-20 | C111: Ambuiberica | D111: B47484530 | E111: 450 | F111: 450 | G111: Asistencia sanitaria campeonato día del Baloncesto en Leioa 1 de junio | H111: PUNTUAL | I111: 2019-06-01
A112: 606 | B112: 2019-05-27 | C112: Ambuiberica | D112: B47484530 | E112: 900 | F112: 900 | G112: Asistencia sanitaria torneo Lagun Artea 1y 2 de junio | H112: PUNTUAL | J112: Procede: CM-176/2019 Dec. 397
A113: 24 | B113: 2019-01-04 | C113: Ambulancias del Norte | D113: 22741172Z | E113: 118.25 | F113: 118.25 | G113: Partido Sd Leioa 5 enero 2019
A114: 25 | B114: 2019-01-04 | C114: Ambulancias del Norte | D114: 22741172Z | E114: 118.25 | F114: 118.25 | G114: Partido Sd Leioa 12 enero 2019
A115: 26 | B115: 2019-01-04 | C115: Ambulancias del Norte | D115: 22741172Z | E115: 118.25 | F115: 118.25 | G115: Partido Sd Leioa 26 enero 2019
A116: 222 | B116: 2019-02-11 | C116: Ambulancias DYA | D116: G48064760 | E116: 390 | F116: 390 | G116: Campeonato Esgrima 24 de febrero | I116: 2019-02-24
A117: 571 | B117: 2019-05-14 | C117: Ambytecno S.A. | D117: A48239214 | E117: 1728.8 | F117: 2091.848 | G117: Reparaciones parques infantiles
A118: 572 | B118: 2019-05-20 | C118: Ambytecno S.A. | D118: A48239214 | E118: 1780 | F118: 2153.8 | G118: Revisión y reparaciones parques infantiles
A119: 373 | B119: 2019-04-05 | C119: Ana Jose Capilla Cintado | D119: 31733770A | E119: 800 | F119: 968 | G119: Actuación "Cajita de Música" Umore Azoka 2019
A120: 621 | B120: 2019-06-13 | C120: Ana Lopez Franco (Aplicaciones Decorativas) | D120: 79142585E | E120: 12815.5 | F120: 15506.755 | G120: Tratamientos sobre madera Molino de Errekalde | H120: 2 Meses
A121: 705 | B121: 2019-06-12 | C121: Ander Basaldua Castellano | D121: 16081852E | E121: -140 | F121: -154 | G121: Minorar Fact. Ander Basaldua Umore Azoka
A122: 378 | B122: 2019-04-05 | C122: Ander Basaldua Castellano | D122: 16081852E | E122: 1400 | F122: 1694 | G122: Actuación "YIJAAA!!!" Umore Azoka 2019
A123: 570 | B123: 2019-06-19 | C123: Ander Duarte Vigiola | D123: 72402470B | E123: 4668.48 | F123: 5648.8608 | G123: Patios Inclusivos | H123: PUNTUAL
A124: ADO2 | B124: 01/03 a 30/06 | C124: ANDOIN FERNANDEZ ALVARO | D124: 16050277A | E124: 12.59504132 | F124: 15.24 | G124: IMPORTE PARTE CORRESPONDIENTE AL IRPF NO RETENIDO EN LA FAC.F-34 DE FECHA 20/06/18- PROP.PAGOS Nº20/19
A125: 336 | B125: 2019-03-18 | C125: Andoni Izquierdo González | D125: 45671784V | E125: 500 | F125: 500 | G125: Taller de customizado | J125: Procede: CM-31/2019
A126: 711 | B126: 2019-06-12 | C126: Andrea Waitzman García | D126: X3562162Z | E126: -140 | F126: -154 | G126: Minorar Fact. Andrea Waitzman Umore Azoka
A127: 405 | B127: 2019-04-05 | C127: Andrea Waitzman García | D127: X3562162Z | E127: 1400 | F127: 1694 | G127: Actuación "Tutilimundi, Teatros en miniatura" Umore Azoka 2019
A128: ADO1 | B128: 01/01 a 30/03 | C128: ANGULO SANTOS ESTIBALIZ | D128: 44970821W | E128: 103.0578512 | F128: 124.7 | G128: SUMINISTRO DE MEDICAMENTOS PARA EMPLEADOS MUNICIPALES.-FRA. 003145 PROPUESTA PAGOS Nº 1/19
A129: ADO2 | B129: 01/03 a 30/06 | C129: ANGULO SANTOS ESTIBALIZ | D129: 44970821W | E129: 182.6280992 | F129: 220.98 | G129: SUMINISTRO DE MEDICAMENTOS RECETAS TRBJADORES.-FRA. 003158 PP Nº 16/19
A130: 402 | B130: 2019-04-05 | C130: Antón Coucheiro Failde | D130: 32822390X | E130: 900 | F130: 1089 | G130: Actuación "Sonámbulo" Umore Azoka 2019
A131: 706 | B131: 2019-06-12 | C131: Antonio Bastero Rey | D131: 16029471N | E131: -120 | F131: -132 | G131: Minorar Fact. Antonio Bastero Umore Azoka
A132: 386 | B132: 2019-04-05 | C132: Antonio Bastero Rey | D132: 16029471N | E132: 1200 | F132: 1452 | G132: Actuación "Txontxongilo Bertsolariak" Umore Azoka 2019
A133: 741 | B133: 2019-06-18 | C133: Antonio Bastero Rey (Toni La Sal) | D133: 16029471N | E133: 799 | F133: 966.79 | G133: BIRUSAK ERASOAN ikuskizuna San Juan Jaiak
A134: 433 | B134: 2019-04-08 | C134: Antonio Pastor Matos | D134: 12317228S | E134: 8250 | F134: 9075 | G134: Recorrido de autobús por los barrios de Leioa, incluyendo monitor - Campaña UDA 20189
A135: 793 | B135: 2019-06-14 | C135: Aon Gil y Carvajal | D135: A28109247 | E135: 1284.02 | F135: 1365.97 | G135: Seguro de accidentes colectivo para campaña UDA 2019 | H135: 1 Mes | I135: 2019-07-31
A136: ADO1 | B136: 01/01 a 30/03 | C136: APPLUS NORCONTROL,S.L.U. | D136: B15044357 | E136: 149.8016529 | F136: 181.26 | G136: IMPORTE INSPECCION ASCENSOR REALIZADA EN MENDIBILE F.04 19000044 PP Nº 1/19
A137: ADO1 | B137: 01/01 a 30/03 | C137: AQUAM - SERVIRREINER,S.L. | D137: B48785810 | E137: 103.9008264 | F137: 125.72 | G137: SUMINISTRO AGUA EMBOTELLADA PARA CULTURA. ENERO.-FRA. 727822 PROPUESTA PAGOS 6/19
A138: 78 | B138: 2019-12-31 | C138: AQUAN SERVIREINER SL | D138: B48785810 | E138: 20 | F138: 22 | G138: Suministro a tramitar a través de compras | J138: Factura 723894
A139: 78 | B139: 2019-04-30 | C139: AQUAN SERVIREINER SL | D139: B48785810 | E139: 114.85 | F139: 126.335 | G139: Suministro a tramitar a través de compras | J139: Factura 749099
A140: 78 | B140: 2019-01-15 | C140: AQUAN SERVIREINER SL | D140: B48785810 | E140: 1919.24 | F140: 2211.7227 | G140: Suministro a tramitar a través de compras | H140: PUNTUAL | I140: 2019-03-30
A141: 137 | B141: 2019-01-18 | C141: ARCAL Gestion documental S.A. | D141: A47402706 | E141: 2127.15 | F141: 2573.8515 | G141: Gestion, custodia y traslado documentacion archivo -naves mungia- | H141: 3 Meses | I141: 2019-03-30
A142: ADO1 | B142: 01/01 a 30/03 | C142: AREAK S.L. | D142: B48579965 | E142: 128 | F142: 154.88 | G142: SUMINISTRO FUENTE DE ALIMENTACION EVOLIS.-FRA. 190375 PROPUESTA PAGOS 7/19
A143: ADO1 | B143: 01/01 a 30/03 | C143: AREAK S.L. | D143: B48579965 | E143: 134.322314 | F143: 162.53 | G143: SUMINISTRO DE KIT LIMPIEZA, CINTA MONOCROMO...FRA. 190374 PP Nº 8/19
A144: 466 | B144: 2019-04-17 | C144: Argimiro Urones Martín (Gambrinus) | D144: 11716192S | E144: 16.9 | F144: 18.59 | G144: Ampliar factura Gambrinus Concurso Pop Rock 2019
A145: 236 | B145: 2019-02-15 | C145: Argimiro Urones Martín (Gambrinus) | D145: 11716192S | E145: 35 | F145: 38.5 | G145: Catering – Jurados
A146: 630 | B146: 2019-06-03 | C146: Argimiro Urones Martín (Gambrinus) | D146: 11716192S | E146: 289.1 | F146: 349.811 | G146: Catering grupos finalistas y cena jurados
A147: 664 | B147: 2019-06-06 | C147: Argimiro Urones Martín (Gambrinus) | D147: 11716192S | E147: 343.8016 | F147: 415.999936 | G147: Ampliar Fact. Arigimiro (Bar Gambrinus) Umore Azoka 2019
A148: 516 | B148: 2019-05-09 | C148: Argimiro Urones Martín (Gambrinus) | D148: 11716192S | E148: 2360 | F148: 2596 | G148: Comidas y cenas Umore Azoka
A149: ADO2 | B149: 01/03 a 30/06 | C149: ARIMA COOL TOUR S.L. | D149: B95573408 | E149: 454.5454545 | F149: 550 | G149: IMPORTE DISKO FESTA EL DIA DE LA KORRIKA.-FRA. F-2019/48 PP Nº 22/19
A150: 635 | B150: 2019-06-03 | C150: Aritz García López | D150: 16059911T | E150: 250 | F150: 302.5 | G150: Presentación de las finales
A151: 196 | B151: 2019-02-15 | C151: ARITZ RESINES RUIZ | D151: 20222487J | E151: 120 | F151: 120 | G151: Taller afectivo sexual para familñias
A152: 480 | B152: 2019-04-30 | C152: ARITZ RESINES RUIZ | D152: 20222487J | E152: 3120 | F152: 3120 | G152: Taller afectivo sexual alumnado
A153: 328 | B153: 2019-03-14 | C153: Aritz Resines Ruiz (Xelebreak) | D153: 20222487J | E153: 120 | F153: 120 | G153: Taller afectivo sexual para familñias
A154: 757 | B154: 2019-06-18 | C154: Arran Zerbitzu Kulturalak | D154: 20175136L | E154: 450 | F154: 495 | G154: Puzgarriak San Juan Auzunea Jaiak
A155: 499 | B155: 2019-05-09 | C155: Artekale | D155: G95449070 | E155: 1000 | F155: 1000 | G155: Producción espacio Artekale Umore Azoka
A156: 272 | B156: 2019-02-28 | C156: Artepolitan | D156: B95619904 | E156: 14381.64 | F156: 17401.7844 | G156: Reparación suelo Euskal Etxeen Plaza
A157: 467 | B157: 2019-04-23 | C157: ARTEZ | D157: F95015897 | E157: 662.76 | F157: 801.9396 | G157: Traducción IV Plan de Igualdad | H157: PUNTUAL | J157: Procede: CM-500/2019 Dec. 1487
A158: ADO1 | B158: 01/01 a 30/03 | C158: ARTEZ EUSKARA ZERBITZUA,KOOP. | D158: F95015897 | E158: 25 | F158: 30.25 | G158: IMPORTE SERV DE TRADUCCIONES PARA HACIENDA Y PATRIMONIO Y VEHÍCULOS. FRA- 19000027 PP Nº 5/19
A159: ADO2 | B159: 01/03 a 30/06 | C159: ARTEZ EUSKARA ZERBITZUA,KOOP. | D159: F95015897 | E159: 25 | F159: 30.25 | G159: IMPORTE SERV DE TRADUCCIONES PARA HACIENDA Y PATRIMONIO Y VEHÍCULOS. FRA- 19000027 PP Nº 5/19
A160: ADO2 | B160: 01/03 a 30/06 | C160: ARTEZ EUSKARA ZERBITZUA,KOOP. | D160: F95015897 | E160: 141.3305785 | F160: 171.01 | G160: IMPORTE SERV DE TRADUCCIONES PARA SECRETARIA.-FRA. 19000111 PP Nº 13/19
A161: 131 | B161: 2019-01-18 | C161: Artezblai S.L. | D161: B95380168 | E161: 1100 | F161: 1331 | G161: 6 envios anuales de las Revistas a Amigos/as Kultur Leioa
A162: 489 | B162: 2019-05-09 | C162: Artezblai S.L. | D162: B95380168 | E162: 1200 | F162: 1452 | G162: Inserción de Publicidad en ARTEZ de mayo a junio
A163: 138 | B163: 2019-01-18 | C163: ARTXILAN S.L. | D163: B48922967 | E163: 4766.9 | F163: 5767.949 | G163: Gestion archivo municipal y consultas y traslados de expedientes | H163: 3 Meses | I163: 2019-03-30 | J163: URGENTE PARA INVENTARIO DE BIENES
A164: ADO1 | B164: 01/01 a 30/03 | C164: ARTXILAN,S.L. | D164: B48922967 | E164: 250.322314 | F164: 302.89 | G164: IMPORTE PRESTAMO DE EXPEDIENTES EN CUSTODIA EN EL ARCHIVO. ENERO.-FRA. 2/2019 PP Nº 4/19
A165: 703 | B165: 2019-06-12 | C165: Asier Alvarez de Arkaia Ruiz de Eguilaz | D165: 44672243X | E165: -260 | F165: -286 | G165: Minorar Fact. Asier Alvarez de Arkaya Umore Azoka | J165: Procede CM-156
A166: 375 | B166: 2019-04-05 | C166: Asier Alvarez de Arkaia Ruiz de Eguilaz | D166: 44672243X | E166: 2600 | F166: 3146 | G166: Actuación "Epa Txiki!" Umore Azoka 2019
A167: 639 | B167: 2019-06-03 | C167: Asier Bilbao Aurrekoetxea | D167: 14612076S | E167: 250 | F167: 302.5 | G167: Jurado
A168: 11 | B168: 2019-01-07 | C168: Asier Zabaleta Mendia | D168: 44131445B | E168: 1933.89 | F168: 2340.0069 | G168: Actuación de Danza Teatro "La Teta de Janet"
A169: 559 | B169: 2019-05-16 | C169: ASISTIC III Milenio S.L. | D169: B95558359 | E169: 1569.2 | F169: 1898.732 | G169: Portatil DELL XPS y funda para Kultur Leioa
A170: 717 | B170: 2019-06-14 | C170: ASISTIC III Milenio S.L. | D170: B95558359 | E170: 1896 | F170: 2294.16 | G170: 3 monitores para el departamento de informática municipal | H170: PUNTUAL
A171: 437 | B171: 2019-04-10 | C171: ASISTIC III Milenio S.L. | D171: B95558359 | E171: 9121 | F171: 11036.41 | G171: Plotter OT | H171: PUNTUAL
A172: 59 | B172: 2019-01-11 | C172: Asoc. Cultural Txalaparta Flamenca (Ander Sanchez Beaskoetxea) | D172: G95587911 | E172: 1000 | F172: 1000 | G172: Curso percusión
A173: 8 | B173: 2019-01-07 | C173: Asoc. Musbika para la difusión y sensibilización de la música | D173: G95846911 | E173: 2000 | F173: 2420 | G173: Actuación de Teatro "Itsasoen deiadarra"
A174: 180 | B174: 2019-01-30 | C174: Asoc.AMEKADI | D174: G95739652 | E174: 15000 | F174: 15000 | G174: Desarrollo de la estrategia antirrumores en Leioa
A175: 642 | B175: 2019-06-03 | C175: Asociación AI LAKET! - EUSKADI | D175: G01334119 | E175: 2550 | F175: 3085.5 | G175: Programa Testing
A176: 153 | B176: 2019-01-23 | C176: Asociacion Claretiana para el Desarrollo SORTARAZI | D176: G48852578 | E176: 50.23 | F176: 50.23 | G176: Desplazamiento reunion Lakua recuento nocturno personas sin techo 2018 | H176: PUNTUAL | I176: 2019-12-31
A177: 195 | B177: 2019-02-05 | C177: Asociacion Claretiana para el Desarrollo SORTARAZI | D177: G48852578 | E177: 1550.23 | F177: 15520.23 | G177: Recuento personas sin hogar / Etxegabekoen kale neurketa | H177: PUNTUAL | I177: 2019-12-31
A178: 347 | B178: 2019-03-18 | C178: Asociación cultural Tarasu | D178: G95258794 | E178: 420 | F178: 420 | G178: Curso K POP (baile)
A179: 215 | B179: 2019-02-05 | C179: Asociación de Comercios Unidos de Leioa | D179: G95119855 | E179: 1370 | F179: 1370 | G179: Bonos concurso de disfraces
A180: 399 | B180: 2019-04-05 | C180: Asociación del Revés | D180: G65407728 | E180: 4000 | F180: 4840 | G180: Actución "Finale" Umore Azoka 2019
A181: 602 | B181: 2019-05-27 | C181: ASOCIACION ESPAÑOLA CONTRA EL CANCER | D181: G28197564 | E181: 45 | F181: 45 | G181: Conferencia de prevención y educación para la salud | H181: PUNTUAL | J181: Procede: CM-522/2019 Dec. 1487
A182: 478 | B182: 2019-04-30 | C182: Asociación Leioako Euskal Kirol Zaleak | D182: G48298707 | E182: 1250 | F182: 1250 | G182: Organización del programa festivo de San Isidro en Ondiz 2019
A183: 339 | B183: 2019-03-15 | C183: Asociación Ongizatea | D183: G95844890 | E183: 6990 | F183: 8457.9 | G183: Servicio intemediación Familia Escuela | H183: 12 Meses
A184: 682 | B184: 2019-06-07 | C184: ASOCIACION SOKOLE | D184: G95709184 | E184: 1020 | F184: 1020 | G184: Espectáculo animación danza y percusión | H184: PUNTUAL
A185: 525 | B185: 2019-05-08 | C185: Asociación Vasca Agencias Desarrollo-GARAPEN | D185: G20227203 | E185: 3942.98 | F185: 4771.0058 | G185: Gestión programa Hazilan
A186: ADO2 | B186: 01/03 a 30/06 | C186: ASOCIACION VASCA DE AGENCIAS DE DESARROLLO-GARAPEN | D186: G20227203 | E186: 304.8429752 | F186: 368.86 | G186: IMPORTE ACTUALIZACION OBSERVATORIO URBANO 19 BEHARGINTZA F.2019019 PROPUESTA PAGOS Nº 2/19
A187: 418 | B187: 2019-04-05 | C187: Association Collectif Aflirkoa | D187: SIRET: 84087025700010 APE: 9499Z | E187: 1800 | F187: 1800 | G187: Actuación "Echos" Umore Azoka 2019 | J187: Procede: CM-28/2019 Dec. 38
A188: 670 | B188: 2019-06-06 | C188: Atalaia Claret | D188: R4800466G | E188: -137.685 | F188: -166.59885 | G188: Minorar Fact. Atalaia Claret Umore Azoka 2019
A189: 500 | B189: 2019-05-09 | C189: Atalaia Claret | D189: R4800466G | E189: 2241.45 | F189: 2465.6 | G189: Estancia profesionales/Compañías
A190: ADO2 | B190: 01/03 a 30/06 | C190: ATISAE - ASISTENCIA TECNICA INDUSTRIAL, S.A.E | D190: A28161396 | E190: 75.27272727 | F190: 91.08 | G190: IMPORTE INSPECCION ASCENSOR POLID SAKONETA.-FRA. 6460719424 PP Nº 13/19
A191: ADO1 | B191: 01/01 a 30/03 | C191: ATTEST-PKF ATTEST SERVICIOS EMPRESARIALES, S.L. | D191: B95221271 | E191: 14.87603306 | F191: 18 | G191: IMPORTE FORMACIÓN BEHARGINTZA Mónica Gómez F.187 PP Nº 11/19
A192: 23 | B192: 2019-01-02 | C192: AUNAR ELKARTEA | D192: G95752010 | E192: 8000 | F192: 8000 | G192: TAPER SOLIDARIO | H192: 11 Meses | I192: 2019-12-31
A193: 686 | B193: 2019-06-07 | C193: AUTOBUSES PASTOR | D193: S12317228 | E193: 160 | F193: 176 | G193: Viajes en autobús para la semana cultural vasca | J193: Procede: CM-27/2019 Dec. 38
A194: 198 | B194: 2019-02-06 | C194: AUTOBUSES PASTOR | D194: S12317228 | E194: 1200 | F194: 1320 | G194: conforme con los servicios anteriores ofrecidos | H194: 4 Meses
A195: 595 | B195: 2019-05-23 | C195: AUTOCARES PASTOR | D195: B48909519 | E195: 1360 | F195: 1496 | G195: Euskal Kulturaren Astea: Garraioa | H195: PUNTUAL
A196: 432 | B196: 2019-04-08 | C196: Autocares Pastor | D196: B48909519 | E196: 12960 | F196: 14256 | G196: Viajes en autobús a actividades incluidas en la campaña UDA 2019
A197: ADO1 | B197: 01/01 a 30/03 | C197: AUTOCARES PASTOR, S.L. | D197: B48909519 | E197: 290.9090909 | F197: 352 | G197: IMPORTE TRANSPORTE ESCOLAR DICIEMBRE F.50 PROPUESTA PAGOS Nº1/19
A198: 832 | B198: 2019-06-25 | C198: Autocares SOBRON | D198: P4806400J | E198: 795.46 | F198: 875 | G198: Viajes actividades de Verano | J198: Procede: CM-22/2019 Dec. 24
A199: 269 | B199: 2019-02-26 | C199: Autocares Sobrón | D199: P4806400J | E199: 600.87 | F199: 660.96 | G199: Transporte al museo | H199: 5 Meses | I199: 2019-05-31
A200: ADO1 | B200: 01/01 a 30/03 | C200: AUTOS AMABE S.A. | D200: A48128870 | E200: 316.2727273 | F200: 382.69 | G200: IMPORTE SUSTITUCION DE CUBIERTAS RUEDAS DEL VEHICULO 1589JBN POLICIA.-FRA. 2.019/506.361 PP Nº 11/19
... 1446 more rows

Sheet Hoja1
B1: Fecha | C1: PROVEEDOR | D1: CIF | E1: Importe SIN IVA | F1: Importe Con IVA | G1: Concepto
B2: 2019-12-31 | C2: AQUAN SERVIREINER SL | D2: =UPPER(LOOKUP(C2,'[1]PROVEEDORES COMPRAS'!B:B,'[1]PROVEEDORES COMPRAS'!A:A)) ->  | E2: 20 | F2: 22 | G2: Factura 723894
B3: 2019-09-30 | C3: AGROJARDIN ASTIKENE SL | D3: =UPPER(LOOKUP(C3,'[1]PROVEEDORES COMPRAS'!B:B,'[1]PROVEEDORES COMPRAS'!A:A)) ->  | E3: 104.96 | F3: 127.0016 | G3: Factura 18/03012
B4: 2019-06-30 | C4: INDUFER | D4: =UPPER(LOOKUP(C4,'[1]PROVEEDORES COMPRAS'!B:B,'[1]PROVEEDORES COMPRAS'!A:A)) -> B95445508 | E4: 9.39 | F4: =1.21*E4 -> 11.3619 | G4: Factura1900697 nºpedido 511
B5: 2019-06-30 | C5: INDUFER | D5: =UPPER(LOOKUP(C5,'[1]PROVEEDORES COMPRAS'!B:B,'[1]PROVEEDORES COMPRAS'!A:A)) -> B95445508 | E5: 25 | F5: =1.21*E5 -> 30.25 | G5: Factura 1900696 nº pedido 506
B6: 2019-06-30 | C6: INDUFER | D6: =UPPER(LOOKUP(C6,'[1]PROVEEDORES COMPRAS'!B:B,'[1]PROVEEDORES COMPRAS'!A:A)) -> B95445508 | E6: 30.24 | F6: =1.21*E6 -> 36.5904 | G6: Factura 1900700 nº pedido 512
B7: 2019-06-30 | C7: MONTTE | D7: B95063517 | E7: 69.75 | F7: 84.4 | G7: Factura c19-15188-R nº pedido 533
B8: 2019-06-30 | C8: INDUFER | D8: =UPPER(LOOKUP(C8,'[1]PROVEEDORES COMPRAS'!B:B,'[1]PROVEEDORES COMPRAS'!A:A)) -> B95445508 | E8: 96.94 | F8: =1.21*E8 -> 117.2974 | G8: Factura 1900698 nº pedido 520/528
B9: 2019-06-30 | C9: CAFÉ BAQUE SL | D9: =UPPER(LOOKUP(C9,'[1]PROVEEDORES COMPRAS'!B:B,'[1]PROVEEDORES COMPRAS'!A:A)) ->  | E9: 121.6 | F9: =1.1*E9 -> 133.76 | G9: Factura 0090205593
B10: 2019-06-30 | C10: CAFÉ BAQUE SL | D10: =UPPER(LOOKUP(C10,'[1]PROVEEDORES COMPRAS'!B:B,'[1]PROVEEDORES COMPRAS'!A:A)) ->  | E10: 139.65 | F10: =1.1*E10 -> 153.615 | G10: Factura 0090205594
B11: 2019-06-30 | C11: MONTTE | D11: B95063517 | E11: 209.25 | F11: 253.19 | G11: Factura c19-15189-R nº pedido 535
B12: 2019-06-30 | C12: INDUFER | D12: =UPPER(LOOKUP(C12,'[1]PROVEEDORES COMPRAS'!B:B,'[1]PROVEEDORES COMPRAS'!A:A)) -> B95445508 | E12: 776.63 | F12: =1.21*E12 -> 939.7223 | G12: Factura 1900699 nº pedido 521/497
B13: 2019-06-25 | C13: HARESI SERVICIOS INFORMATICOS | D13: B95730255 | E13: 108.9 | F13: 131.77 | G13: Factura 20193597 nº pedido 523
B14: 2019-06-17 | C14: ACIDEKA SL | D14: =UPPER(LOOKUP(C14,'[1]PROVEEDORES COMPRAS'!B:B,'[1]PROVEEDORES COMPRAS'!A:A)) ->  | E14: 903.75 | F14: =1.21*E14 -> 1093.5375 | G14: Factura 759866 nº pedido 504
B15: 2019-06-15 | C15: INDUFER | D15: =UPPER(LOOKUP(C15,'[1]PROVEEDORES COMPRAS'!B:B,'[1]PROVEEDORES COMPRAS'!A:A)) -> B95445508 | E15: 5.3 | F15: 6.413 | G15: Factura 1900651 pedido nº 427
B16: 2019-06-15 | C16: GRUPO LEIOA XXI, SL | D16: =UPPER(LOOKUP(C16,'[1]PROVEEDORES COMPRAS'!B:B,'[1]PROVEEDORES COMPRAS'!A:A)) -> B95445508 | E16: 11.26 | F16: 13.6246 | G16: Factura 708113
B17: 2019-06-15 | C17: INDUFER | D17: =UPPER(LOOKUP(C17,'[1]PROVEEDORES COMPRAS'!B:B,'[1]PROVEEDORES COMPRAS'!A:A)) -> B95445508 | E17: 33.96 | F17: 41.0916 | G17: Factura 1900648
B18: 2019-06-15 | C18: INDUFER | D18: =UPPER(LOOKUP(C18,'[1]PROVEEDORES COMPRAS'!B:B,'[1]PROVEEDORES COMPRAS'!A:A)) -> B95445508 | E18: 60.98 | F18: 73.7858 | G18: Factura 1900653
B19: 2019-06-15 | C19: GRUPO LEIOA XXI, SL | D19: =UPPER(LOOKUP(C19,'[1]PROVEEDORES COMPRAS'!B:B,'[1]PROVEEDORES COMPRAS'!A:A)) -> B95445508 | E19: 64.4 | F19: 77.924 | G19: Factura 708115
B20: 2019-06-15 | C20: INDUFER | D20: =UPPER(LOOKUP(C20,'[1]PROVEEDORES COMPRAS'!B:B,'[1]PROVEEDORES COMPRAS'!A:A)) -> B95445508 | E20: 78.38 | F20: 94.8398 | G20: Factura 1900652
B21: 2019-06-15 | C21: INDUFER | D21: =UPPER(LOOKUP(C21,'[1]PROVEEDORES COMPRAS'!B:B,'[1]PROVEEDORES COMPRAS'!A:A)) -> B95445508 | E21: 88.08 | F21: 106.5768 | G21: Factura 1900654 nº pedidos 470/503
B22: 2019-06-15 | C22: GRUPO LEIOA XXI, SL | D22: =UPPER(LOOKUP(C22,'[1]PROVEEDORES COMPRAS'!B:B,'[1]PROVEEDORES COMPRAS'!A:A)) -> B95445508 | E22: 157.99 | F22: 191.1679 | G22: Factura 708116
B23: 2019-06-15 | C23: GRUPO LEIOA XXI, SL | D23: =UPPER(LOOKUP(C23,'[1]PROVEEDORES COMPRAS'!B:B,'[1]PROVEEDORES COMPRAS'!A:A)) -> B95445508 | E23: 173.02 | F23: 209.3542 | G23: Factura 708114
B24: 2019-06-15 | C24: INDUFER | D24: =UPPER(LOOKUP(C24,'[1]PROVEEDORES COMPRAS'!B:B,'[1]PROVEEDORES COMPRAS'!A:A)) -> B95445508 | E24: 251.13 | F24: 303.8673 | G24: Factura 1900650
B25: 2019-06-15 | C25: INDUFER | D25: =UPPER(LOOKUP(C25,'[1]PROVEEDORES COMPRAS'!B:B,'[1]PROVEEDORES COMPRAS'!A:A)) -> B95445508 | E25: 251.13 | F25: 303.8673 | G25: Factura 1900650 pedidos nº 438/465
B26: 2019-06-15 | C26: ELECTRO VIZCAYA | D26: =UPPER(LOOKUP(C26,'[1]PROVEEDORES COMPRAS'!B:B,'[1]PROVEEDORES COMPRAS'!A:A)) ->  | E26: 274.5 | F26: 332.145 | G26: Factura 209083
B27: 2019-06-15 | C27: INDUFER | D27: =UPPER(LOOKUP(C27,'[1]PROVEEDORES COMPRAS'!B:B,'[1]PROVEEDORES COMPRAS'!A:A)) -> B95445508 | E27: 345.04 | F27: 417.4984 | G27: Factura 1900649 pedidos nº 458/469/507
B28: 2019-06-15 | C28: GALDESA SL | D28: =UPPER(LOOKUP(C28,'[1]PROVEEDORES COMPRAS'!B:B,'[1]PROVEEDORES COMPRAS'!A:A)) -> B95445508 | E28: 420.59 | F28: 508.9139 | G28: Factura 269256
B29: 2019-06-15 | C29: ELECTRO VIZCAYA | D29: =UPPER(LOOKUP(C29,'[1]PROVEEDORES COMPRAS'!B:B,'[1]PROVEEDORES COMPRAS'!A:A)) ->  | E29: 710.7 | F29: 859.947 | G29: Factura 209084
B30: 2019-06-15 | C30: GALDESA SL | D30: =UPPER(LOOKUP(C30,'[1]PROVEEDORES COMPRAS'!B:B,'[1]PROVEEDORES COMPRAS'!A:A)) -> B95445508 | E30: 748.88 | F30: 906.1448 | G30: Factura 269259
B31: 2019-06-15 | C31: GALDESA SL | D31: =UPPER(LOOKUP(C31,'[1]PROVEEDORES COMPRAS'!B:B,'[1]PROVEEDORES COMPRAS'!A:A)) -> B95445508 | E31: 846 | F31: 1023.66 | G31: Factura 269275
B32: 2019-06-14 | C32: SITHEISA – TRABIO SL | D32: =UPPER(LOOKUP(C32,'[1]PROVEEDORES COMPRAS'!B:B,'[1]PROVEEDORES COMPRAS'!A:A)) -> B95063723 | E32: 776.58 | F32: =1.1*E32 -> 854.238 | G32: Factura 19/251 nº pedido 342
B33: 2019-06-13 | C33: HARESI SERVICIOS INFORMATICOS | D33: B95730255 | E33: 61.55 | F33: 74.48 | G33: factura 20193488
B34: 2019-06-13 | C34: HARESI SERVICIOS INFORMATICOS | D34: B95730255 | E34: 189.8 | F34: 229.66 | G34: factura 20193489
B35: 2019-06-12 | C35: ACIDEKA SL | D35: =UPPER(LOOKUP(C35,'[1]PROVEEDORES COMPRAS'!B:B,'[1]PROVEEDORES COMPRAS'!A:A)) ->  | E35: 1137.22 | F35: =1.21*E35 -> 1376.0362 | G35: Factura 759694
B36: 2019-06-11 | C36: MONTTE | D36: =UPPER(LOOKUP(C36,'[1]PROVEEDORES COMPRAS'!B:B,'[1]PROVEEDORES COMPRAS'!A:A)) -> B95063723 | E36: 69.75 | F36: =1.21*E36 -> 84.3975 | G36: C19-13548-R
B37: 2019-06-07 | C37: SUSTRAIAK | D37: =UPPER(LOOKUP(C37,'[1]PROVEEDORES COMPRAS'!B:B,'[1]PROVEEDORES COMPRAS'!A:A)) -> B95063723 | E37: 2294.64 | F37: =1.21*E37 -> 2776.5144 | G37: 20192661
B38: 2019-06-01 | C38: HOTEL HOGAR BIZKAIA SL | D38: B48484166 | E38: 63.92 | F38: 77.34 | G38: Factura 902176 nº pedido 434
B39: 2019-05-31 | C39: PAPELBASK | D39: =UPPER(LOOKUP(C39,'[1]PROVEEDORES COMPRAS'!B:B,'[1]PROVEEDORES COMPRAS'!A:A)) -> B95063723 | E39: 0.7 | F39: =1.21*E39 -> 0.847 | G39: Factura A19/962
B40: 2019-05-31 | C40: INDUFER | D40: =UPPER(LOOKUP(C40,'[1]PROVEEDORES COMPRAS'!B:B,'[1]PROVEEDORES COMPRAS'!A:A)) -> B95445508 | E40: 12.74 | F40: =1.21*E40 -> 15.4154 | G40: Factura 19005520
B41: 2019-05-31 | C41: INDUFER | D41: =UPPER(LOOKUP(C41,'[1]PROVEEDORES COMPRAS'!B:B,'[1]PROVEEDORES COMPRAS'!A:A)) -> B95445508 | E41: 12.74 | F41: =1.21*E41 -> 15.4154 | G41: Factura 1900544
B42: 2019-05-31 | C42: INDUFER | D42: =UPPER(LOOKUP(C42,'[1]PROVEEDORES COMPRAS'!B:B,'[1]PROVEEDORES COMPRAS'!A:A)) -> B95445508 | E42: 15.36 | F42: =1.21*E42 -> 18.5856 | G42: factura 1900550
B43: 2019-05-31 | C43: ERCOREKA | D43: =UPPER(LOOKUP(C43,'[1]PROVEEDORES COMPRAS'!B:B,'[1]PROVEEDORES COMPRAS'!A:A)) ->  | E43: 17.38 | F43: =1.04*E43 -> 18.0752 | G43: Factura 850130619
B44: 2019-05-31 | C44: ERCOREKA | D44: =UPPER(LOOKUP(C44,'[1]PROVEEDORES COMPRAS'!B:B,'[1]PROVEEDORES COMPRAS'!A:A)) ->  | E44: 21.98 | F44: =1.21*E44 -> 26.5958 | G44: Factura 850130619
B45: 2019-05-31 | C45: INDUFER | D45: =UPPER(LOOKUP(C45,'[1]PROVEEDORES COMPRAS'!B:B,'[1]PROVEEDORES COMPRAS'!A:A)) -> B95445508 | E45: 23.54 | F45: =1.21*E45 -> 28.4834 | G45: Factura 1900546
B46: 2019-05-31 | C46: ERCOREKA | D46: =UPPER(LOOKUP(C46,'[1]PROVEEDORES COMPRAS'!B:B,'[1]PROVEEDORES COMPRAS'!A:A)) ->  | E46: 23.65 | F46: =1.1*E46 -> 26.015 | G46: Factura 850150619
B47: 2019-05-31 | C47: ERCOREKA | D47: =UPPER(LOOKUP(C47,'[1]PROVEEDORES COMPRAS'!B:B,'[1]PROVEEDORES COMPRAS'!A:A)) ->  | E47: 23.8 | F47: =1.21*E47 -> 28.798 | G47: Factura 850150619
B48: 2019-05-31 | C48: PAPELBASK | D48: =UPPER(LOOKUP(C48,'[1]PROVEEDORES COMPRAS'!B:B,'[1]PROVEEDORES COMPRAS'!A:A)) -> B95063723 | E48: 25.94 | F48: =1.21*E48 -> 31.3874 | G48: Factura A19/955
B49: 2019-05-31 | C49: SERVIRREINER | D49: =UPPER(LOOKUP(C49,'[1]PROVEEDORES COMPRAS'!B:B,'[1]PROVEEDORES COMPRAS'!A:A)) -> B95063723 | E49: 27.7 | F49: =1.04*E49 -> 28.808 | G49: Factura 752004
B50: 2019-05-31 | C50: INDUFER | D50: =UPPER(LOOKUP(C50,'[1]PROVEEDORES COMPRAS'!B:B,'[1]PROVEEDORES COMPRAS'!A:A)) -> B95445508 | E50: 30.24 | F50: =1.21*E50 -> 36.5904 | G50: Factura 1900548
B51: 2019-05-31 | C51: PAPELBASK | D51: =UPPER(LOOKUP(C51,'[1]PROVEEDORES COMPRAS'!B:B,'[1]PROVEEDORES COMPRAS'!A:A)) -> B95063723 | E51: 34.2 | F51: 41.382 | G51: Factura A19/957
B52: 2019-05-31 | C52: INDUFER | D52: =UPPER(LOOKUP(C52,'[1]PROVEEDORES COMPRAS'!B:B,'[1]PROVEEDORES COMPRAS'!A:A)) -> B95445508 | E52: 34.82 | F52: 42.1322 | G52: Factura nº 1900545 nº pedido 466
B53: 2019-05-31 | C53: PAPELBASK | D53: =UPPER(LOOKUP(C53,'[1]PROVEEDORES COMPRAS'!B:B,'[1]PROVEEDORES COMPRAS'!A:A)) -> B95063723 | E53: 36.02 | F53: 43.5842 | G53: Factura A/19960
B54: 2019-05-31 | C54: PAPELBASK | D54: =UPPER(LOOKUP(C54,'[1]PROVEEDORES COMPRAS'!B:B,'[1]PROVEEDORES COMPRAS'!A:A)) -> B95063723 | E54: 39.53 | F54: 47.8313 | G54: Factura A19/964
B55: 2019-05-31 | C55: PAPELBASK | D55: =UPPER(LOOKUP(C55,'[1]PROVEEDORES COMPRAS'!B:B,'[1]PROVEEDORES COMPRAS'!A:A)) -> B95063723 | E55: 39.56 | F55: 47.8676 | G55: Factura A19/959 nº pedido 417
B56: 2019-05-31 | C56: SERVIRREINER | D56: =UPPER(LOOKUP(C56,'[1]PROVEEDORES COMPRAS'!B:B,'[1]PROVEEDORES COMPRAS'!A:A)) -> B95063723 | E56: 40.48 | F56: =1.1*E56 -> 44.528 | G56: Factura 752004
B57: 2019-05-31 | C57: ERCOREKA | D57: =UPPER(LOOKUP(C57,'[1]PROVEEDORES COMPRAS'!B:B,'[1]PROVEEDORES COMPRAS'!A:A)) ->  | E57: 41.43 | F57: =1.1*E57 -> 45.573 | G57: Factura 850130619
B58: 2019-05-31 | C58: PAPELBASK | D58: =UPPER(LOOKUP(C58,'[1]PROVEEDORES COMPRAS'!B:B,'[1]PROVEEDORES COMPRAS'!A:A)) -> B95063723 | E58: 41.58 | F58: =1.21*E58 -> 50.3118 | G58: Factura A19/961
B59: 2019-05-31 | C59: SERVIRREINER | D59: =UPPER(LOOKUP(C59,'[1]PROVEEDORES COMPRAS'!B:B,'[1]PROVEEDORES COMPRAS'!A:A)) -> B95063723 | E59: 42.35 | F59: =1.1*E59 -> 46.585 | G59: Factura 749413
B60: 2019-05-31 | C60: SERVIRREINER | D60: =UPPER(LOOKUP(C60,'[1]PROVEEDORES COMPRAS'!B:B,'[1]PROVEEDORES COMPRAS'!A:A)) -> B95063723 | E60: 42.8 | F60: =1.21*E60 -> 51.788 | G60: Facutura 754780
B61: 2019-05-31 | C61: PAPELBASK | D61: =UPPER(LOOKUP(C61,'[1]PROVEEDORES COMPRAS'!B:B,'[1]PROVEEDORES COMPRAS'!A:A)) -> B95063723 | E61: 49.78 | F61: 60.2338 | G61: Factura A19/954
B62: 2019-05-31 | C62: INDUFER | D62: =UPPER(LOOKUP(C62,'[1]PROVEEDORES COMPRAS'!B:B,'[1]PROVEEDORES COMPRAS'!A:A)) -> B95445508 | E62: 50.39 | F62: 60.9719 | G62: Factura 1900543
B63: 2019-05-31 | C63: UGARTE AMO, JON (IMPRENTA) | D63: =UPPER(LOOKUP(C63,'[1]PROVEEDORES COMPRAS'!B:B,'[1]PROVEEDORES COMPRAS'!A:A)) -> B95063723 | E63: 54 | F63: 65.34 | G63: Factura 13148
B64: 2019-05-31 | C64: KARYKER | D64: =UPPER(LOOKUP(C64,'[1]PROVEEDORES COMPRAS'!B:B,'[1]PROVEEDORES COMPRAS'!A:A)) -> B95063723 | E64: 59 | F64: 71.39 | G64: Factura 9/191027
B65: 2019-05-31 | C65: HARESI SERVICIOS INFORMATICOS | D65: =UPPER(LOOKUP(C65,'[1]PROVEEDORES COMPRAS'!B:B,'[1]PROVEEDORES COMPRAS'!A:A)) -> B95445508 | E65: 65.96 | F65: 79.8116 | G65: Factura 20193324
B66: 2019-05-31 | C66: PAPELBASK | D66: =UPPER(LOOKUP(C66,'[1]PROVEEDORES COMPRAS'!B:B,'[1]PROVEEDORES COMPRAS'!A:A)) -> B95063723 | E66: 73.36 | F66: 88.7656 | G66: Factura A19/963
B67: 2019-05-31 | C67: GALDESA SL | D67: =UPPER(LOOKUP(C67,'[1]PROVEEDORES COMPRAS'!B:B,'[1]PROVEEDORES COMPRAS'!A:A)) -> B95445508 | E67: 83.16 | F67: 100.6236 | G67: Factura 267875
B68: 2019-05-31 | C68: SERVIRREINER | D68: =UPPER(LOOKUP(C68,'[1]PROVEEDORES COMPRAS'!B:B,'[1]PROVEEDORES COMPRAS'!A:A)) -> B95063723 | E68: 90.75 | F68: =1.1*E68 -> 99.825 | G68: Factura 750422
B69: 2019-05-31 | C69: ERCOREKA | D69: =UPPER(LOOKUP(C69,'[1]PROVEEDORES COMPRAS'!B:B,'[1]PROVEEDORES COMPRAS'!A:A)) ->  | E69: 92.56 | F69: =1.21*E69 -> 111.9976 | G69: Factura 850140619
B70: 2019-05-31 | C70: CAFÉ BAQUE SL | D70: =UPPER(LOOKUP(C70,'[1]PROVEEDORES COMPRAS'!B:B,'[1]PROVEEDORES COMPRAS'!A:A)) ->  | E70: 121.6 | F70: =1.1*E70 -> 133.76 | G70: Factura 0090203082
B71: 2019-05-31 | C71: SERVIRREINER | D71: =UPPER(LOOKUP(C71,'[1]PROVEEDORES COMPRAS'!B:B,'[1]PROVEEDORES COMPRAS'!A:A)) -> B95063723 | E71: 126.93 | F71: =1.1*E71 -> 139.623 | G71: Facutra 754780
B72: 2019-05-31 | C72: CAFÉ BAQUE SL | D72: =UPPER(LOOKUP(C72,'[1]PROVEEDORES COMPRAS'!B:B,'[1]PROVEEDORES COMPRAS'!A:A)) ->  | E72: 139.65 | F72: =1.1*E72 -> 153.615 | G72: Factura 0090203081
B73: 2019-05-31 | C73: INDUFER | D73: =UPPER(LOOKUP(C73,'[1]PROVEEDORES COMPRAS'!B:B,'[1]PROVEEDORES COMPRAS'!A:A)) -> B95445508 | E73: 143.85 | F73: =1.21*E73 -> 174.0585 | G73: Factura 1900549
B74: 2019-05-31 | C74: PAPELBASK | D74: =UPPER(LOOKUP(C74,'[1]PROVEEDORES COMPRAS'!B:B,'[1]PROVEEDORES COMPRAS'!A:A)) -> B95063723 | E74: 170.64 | F74: =1.21*E74 -> 206.4744 | G74: Factura A19/958
B75: 2019-05-31 | C75: UGARTE AMO, JON (IMPRENTA) | D75: =UPPER(LOOKUP(C75,'[1]PROVEEDORES COMPRAS'!B:B,'[1]PROVEEDORES COMPRAS'!A:A)) -> B95063723 | E75: 182 | F75: =1.21*E75 -> 220.22 | G75: Factura 13166
B76: 2019-05-31 | C76: ERCOREKA | D76: =UPPER(LOOKUP(C76,'[1]PROVEEDORES COMPRAS'!B:B,'[1]PROVEEDORES COMPRAS'!A:A)) ->  | E76: 211.91 | F76: =1.04*E76 -> 220.3864 | G76: Facutra 850150619
B77: 2019-05-31 | C77: INDUFER | D77: B48253801 | E77: 291.08 | F77: 352.21 | G77: Factura1900547
B78: 2019-05-31 | C78: PAPELBASK | D78: =UPPER(LOOKUP(C78,'[1]PROVEEDORES COMPRAS'!B:B,'[1]PROVEEDORES COMPRAS'!A:A)) -> B95063723 | E78: 435.02 | F78: =1.21*E78 -> 526.3742 | G78: Factura A/19/953 pedidos nº374/435/437/440
B79: 2019-05-31 | C79: GALDESA SL | D79: B48252472 | E79: 560.78 | F79: 678.54 | G79: Factura 267879
B80: 2019-05-31 | C80: AGROJARDIN ASTIKENE SL | D80: =UPPER(LOOKUP(C80,'[1]PROVEEDORES COMPRAS'!B:B,'[1]PROVEEDORES COMPRAS'!A:A)) ->  | E80: 7699.16 | F80: =1.21*E80 -> 9315.9836 | G80: Factura 19/01661
B81: 2019-05-30 | C81: ELECTRO VIZCAYA | D81: =UPPER(LOOKUP(C81,'[1]PROVEEDORES COMPRAS'!B:B,'[1]PROVEEDORES COMPRAS'!A:A)) ->  | E81: 67.03 | F81: =1.21*E81 -> 81.1063 | G81: Factura 208411
B82: 2019-05-30 | C82: ELECTRO VIZCAYA | D82: =UPPER(LOOKUP(C82,'[1]PROVEEDORES COMPRAS'!B:B,'[1]PROVEEDORES COMPRAS'!A:A)) ->  | E82: 410.19 | F82: =1.21*E82 -> 496.3299 | G82: Factura 208412
B83: 2019-05-30 | C83: MADERAS LOBERA | D83: B48114144 | E83: 937.4 | F83: 1134.25 | G83: Factura 1903194
B84: 2019-05-24 | C84: HARESI SERVICIOS INFORMATICOS | D84: =UPPER(LOOKUP(C84,'[1]PROVEEDORES COMPRAS'!B:B,'[1]PROVEEDORES COMPRAS'!A:A)) -> B95445508 | E84: 118.2 | F84: =1.21*E84 -> 143.022 | G84: Factura 20193283 nº pedido 421
B85: 2019-05-24 | C85: HARESI SERVICIOS INFORMATICOS | D85: B95730255 | E85: 165.3 | F85: 200.013 | G85: Factura 20193282
B86: 2019-05-24 | C86: HARESI SERVICIOS INFORMATICOS | D86: =UPPER(LOOKUP(C87,'[1]PROVEEDORES COMPRAS'!B:B,'[1]PROVEEDORES COMPRAS'!A:A)) ->  | E86: 249.3 | F86: 301.653 | G86: Factura 20193284
B87: 2019-05-20 | C87: ACIDEKA SL | D87: =UPPER(LOOKUP(C87,'[1]PROVEEDORES COMPRAS'!B:B,'[1]PROVEEDORES COMPRAS'!A:A)) ->  | E87: 247.06 | F87: 298.9426 | G87: factura 758387 pedido 403
B88: 2019-05-20 | C88: ACIDEKA SL | D88: =UPPER(LOOKUP(C88,'[1]PROVEEDORES COMPRAS'!B:B,'[1]PROVEEDORES COMPRAS'!A:A)) ->  | E88: 271.97 | F88: 329.0837 | G88: factura 758388 pedio 403
B89: 2019-05-16 | C89: KARYKER | D89: =UPPER(LOOKUP(C89,'[1]PROVEEDORES COMPRAS'!B:B,'[1]PROVEEDORES COMPRAS'!A:A)) -> B95063723 | E89: 146.11 | F89: 176.7931 | G89: factura 9/190931
B90: 2019-05-15 | C90: INDUFER | D90: =UPPER(LOOKUP(C90,'[1]PROVEEDORES COMPRAS'!B:B,'[1]PROVEEDORES COMPRAS'!A:A)) -> B95445508 | E90: 2.43 | F90: 2.9403 | G90: Factura 1900514 (no pedido por compras)
B91: 2019-05-15 | C91: INDUFER | D91: =UPPER(LOOKUP(C91,'[1]PROVEEDORES COMPRAS'!B:B,'[1]PROVEEDORES COMPRAS'!A:A)) -> B95445508 | E91: 4.1 | F91: 4.961 | G91: Factura 1900511 Nº pedido 346
B92: 2019-05-15 | C92: INDUFER | D92: =UPPER(LOOKUP(C92,'[1]PROVEEDORES COMPRAS'!B:B,'[1]PROVEEDORES COMPRAS'!A:A)) -> B95445508 | E92: 46.52 | F92: 56.2892 | G92: Factura 1900513
B93: 2019-05-15 | C93: INDUFER | D93: =UPPER(LOOKUP(C93,'[1]PROVEEDORES COMPRAS'!B:B,'[1]PROVEEDORES COMPRAS'!A:A)) -> B95445508 | E93: 59.5 | F93: 71.995 | G93: Factura 1900512 nº pedidos 377/410
B94: 2019-05-15 | C94: ELECTRO VIZCAYA | D94: =UPPER(LOOKUP(C94,'[1]PROVEEDORES COMPRAS'!B:B,'[1]PROVEEDORES COMPRAS'!A:A)) ->  | E94: 93.6 | F94: 113.256 | G94: factura 207733/411
B95: 2019-05-15 | C95: ELECTRO VIZCAYA | D95: =UPPER(LOOKUP(C95,'[1]PROVEEDORES COMPRAS'!B:B,'[1]PROVEEDORES COMPRAS'!A:A)) ->  | E95: 98.29 | F95: 118.9309 | G95: factura 207731/370
B96: 2019-05-15 | C96: INDUFER | D96: =UPPER(LOOKUP(C96,'[1]PROVEEDORES COMPRAS'!B:B,'[1]PROVEEDORES COMPRAS'!A:A)) -> B95445508 | E96: 202.03 | F96: 244.4563 | G96: Factura 1900510 Nos pedidos 373, 381, 386, 391 y 398
B97: 2019-05-15 | C97: GALDESA SL | D97: =UPPER(LOOKUP(C97,'[1]PROVEEDORES COMPRAS'!B:B,'[1]PROVEEDORES COMPRAS'!A:A)) -> B95445508 | E97: 230.25 | F97: 278.6025 | G97: Factura266598 / 376
B98: 2019-05-15 | C98: GALDESA SL | D98: =UPPER(LOOKUP(C98,'[1]PROVEEDORES COMPRAS'!B:B,'[1]PROVEEDORES COMPRAS'!A:A)) -> B95445508 | E98: 237.71 | F98: 287.6291 | G98: factura 266600
B99: 2019-05-15 | C99: ELECTRO VIZCAYA | D99: =UPPER(LOOKUP(C99,'[1]PROVEEDORES COMPRAS'!B:B,'[1]PROVEEDORES COMPRAS'!A:A)) ->  | E99: 549 | F99: 664.29 | G99: factura 207732
B100: 2019-05-15 | C100: SITEHISA | D100: B 71034557 | E100: 850 | F100: 1028.5 | G100: Factura 19/252 nº pedido 367
B101: 2019-05-10 | C101: HARESI SERVICIOS INFORMATICOS | D101: =UPPER(LOOKUP(C101,'[1]PROVEEDORES COMPRAS'!B:B,'[1]PROVEEDORES COMPRAS'!A:A)) -> B95445508 | E101: 75.5 | F101: =1.21*E101 -> 91.355 | G101: Factura 20193145 Nº pedido 366
B102: 2019-05-09 | C102: ACIDEKA SL | D102: =UPPER(LOOKUP(C102,'[1]PROVEEDORES COMPRAS'!B:B,'[1]PROVEEDORES COMPRAS'!A:A)) ->  | E102: 903.75 | F102: 1093.5375 | G102: Factura 757933 Nº pedido 380
B103: 2019-05-06 | C103: DINOF | D103: =UPPER(LOOKUP(C103,'[1]PROVEEDORES COMPRAS'!B:B,'[1]PROVEEDORES COMPRAS'!A:A)) ->  | E103: 220 | F103: 266.2 | G103: Factura 191035. Nº pedido 117
B104: 2019-05-03 | C104: CEPRENOR | D104: =UPPER(LOOKUP(C104,'[1]PROVEEDORES COMPRAS'!B:B,'[1]PROVEEDORES COMPRAS'!A:A)) ->  | E104: 957.95 | F104: 1159.1195 | G104: Factura 19A0239 (no pedido por compras)
B105: 2019-05-02 | C105: HARESI SERVICIOS INFORMATICOS | D105: =UPPER(LOOKUP(C105,'[1]PROVEEDORES COMPRAS'!B:B,'[1]PROVEEDORES COMPRAS'!A:A)) -> B95445508 | E105: 71.4 | F105: 86.394 | G105: Factura 20193116. Nº pedido 350
B106: 2019-05-02 | C106: HARESI SERVICIOS INFORMATICOS | D106: =UPPER(LOOKUP(C106,'[1]PROVEEDORES COMPRAS'!B:B,'[1]PROVEEDORES COMPRAS'!A:A)) -> B95445508 | E106: 118.2 | F106: 143.022 | G106: Factura 20193114. Nº pedido 331
B107: 2019-05-02 | C107: HARESI SERVICIOS INFORMATICOS | D107: =UPPER(LOOKUP(C107,'[1]PROVEEDORES COMPRAS'!B:B,'[1]PROVEEDORES COMPRAS'!A:A)) -> B95445508 | E107: 145.4 | F107: 175.934 | G107: Factura 20193115. Nº pedido 330
B108: 2019-05-01 | C108: SITHEISA – TRABIO SL | D108: =UPPER(LOOKUP(C108,'[1]PROVEEDORES COMPRAS'!B:B,'[1]PROVEEDORES COMPRAS'!A:A)) -> B95063723 | E108: 217.62 | F108: 263.3202 | G108: Factura 19/227
B109: 2019-05-01 | C109: SITHEISA – TRABIO SL | D109: =UPPER(LOOKUP(C109,'[1]PROVEEDORES COMPRAS'!B:B,'[1]PROVEEDORES COMPRAS'!A:A)) -> B95063723 | E109: 900 | F109: =1.1*E109 -> 990 | G109: Factura 19/228
B110: 2019-04-30 | C110: INDUFER | D110: =UPPER(LOOKUP(C110,'[1]PROVEEDORES COMPRAS'!B:B,'[1]PROVEEDORES COMPRAS'!A:A)) -> B95445508 | E110: 9.26 | F110: =1.21*E110 -> 11.2046 | G110: Factura 1900434 pedido nº 352
B111: 2019-04-30 | C111: SERVIRREINER | D111: =UPPER(LOOKUP(C111,'[1]PROVEEDORES COMPRAS'!B:B,'[1]PROVEEDORES COMPRAS'!A:A)) -> B95063723 | E111: 12.1 | F111: =1.1*E111 -> 13.31 | G111: Factura 744969
B112: 2019-04-30 | C112: SUPERMERCADOS ERCORECA SA | D112: =UPPER(LOOKUP(C112,'[1]PROVEEDORES COMPRAS'!B:B,'[1]PROVEEDORES COMPRAS'!A:A)) -> B95063723 | E112: 14.5 | F112: =1.21*E112 -> 17.545 | G112: Factura 850110519
B113: 2019-04-30 | C113: UGARTE AMO, JON (IMPRENTA) | D113: =UPPER(LOOKUP(C113,'[1]PROVEEDORES COMPRAS'!B:B,'[1]PROVEEDORES COMPRAS'!A:A)) -> B95063723 | E113: 15 | F113: =1.21*E113 -> 18.15 | G113: Factura 13126. Nº pedido 353
B114: 2019-04-30 | C114: PAPELBASK | D114: =UPPER(LOOKUP(C114,'[1]PROVEEDORES COMPRAS'!B:B,'[1]PROVEEDORES COMPRAS'!A:A)) -> B95063723 | E114: 17.64 | F114: =1.21*E114 -> 21.3444 | G114: Factura A19/1309. Nº pedido 362
B115: 2019-04-30 | C115: SERVIRREINER | D115: =UPPER(LOOKUP(C115,'[1]PROVEEDORES COMPRAS'!B:B,'[1]PROVEEDORES COMPRAS'!A:A)) -> B95063723 | E115: 21.4 | F115: =1.21*E115 -> 25.894 | G115: Factura 743804
B116: 2019-04-30 | C116: SERVIRREINER | D116: =UPPER(LOOKUP(C116,'[1]PROVEEDORES COMPRAS'!B:B,'[1]PROVEEDORES COMPRAS'!A:A)) -> B95063723 | E116: 21.4 | F116: =1.21*E116 -> 25.894 | G116: Factura 744796
B117: 2019-04-30 | C117: SERVIRREINER | D117: =UPPER(LOOKUP(C117,'[1]PROVEEDORES COMPRAS'!B:B,'[1]PROVEEDORES COMPRAS'!A:A)) -> B95063723 | E117: 24.2 | F117: =1.1*E117 -> 26.62 | G117: Factura 745167
B118: 2019-04-30 | C118: INDUFER | D118: =UPPER(LOOKUP(C118,'[1]PROVEEDORES COMPRAS'!B:B,'[1]PROVEEDORES COMPRAS'!A:A)) -> B95445508 | E118: 26.46 | F118: =1.21*E118 -> 32.0166 | G118: Factura 1900437 Nº pedido 351
B119: 2019-04-30 | C119: PAPELBASK | D119: =UPPER(LOOKUP(C119,'[1]PROVEEDORES COMPRAS'!B:B,'[1]PROVEEDORES COMPRAS'!A:A)) -> B95063723 | E119: 28.31 | F119: =1.21*E119 -> 34.2551 | G119: Factura A19/745. Nº pedido 295 y 310
B120: 2019-04-30 | C120: PAPELBASK | D120: =UPPER(LOOKUP(C120,'[1]PROVEEDORES COMPRAS'!B:B,'[1]PROVEEDORES COMPRAS'!A:A)) -> B95063723 | E120: 32.9 | F120: =1.21*E120 -> 39.809 | G120: Factura A19/749. Nº pedido 349
B121: 2019-04-30 | C121: SUPERMERCADOS ERCORECA SA | D121: =UPPER(LOOKUP(C121,'[1]PROVEEDORES COMPRAS'!B:B,'[1]PROVEEDORES COMPRAS'!A:A)) -> B95063723 | E121: 33.38 | F121: =1.04*E121 -> 34.7152 | G121: Factura 850110519
B122: 2019-04-30 | C122: INDUFER | D122: =UPPER(LOOKUP(C122,'[1]PROVEEDORES COMPRAS'!B:B,'[1]PROVEEDORES COMPRAS'!A:A)) -> B95445508 | E122: 33.7 | F122: =1.21*E122 -> 40.777 | G122: Factura 1900438 Nº pedido 337
B123: 2019-04-30 | C123: PAPELBASK | D123: =UPPER(LOOKUP(C123,'[1]PROVEEDORES COMPRAS'!B:B,'[1]PROVEEDORES COMPRAS'!A:A)) -> B95063723 | E123: 36.99 | F123: =1.21*E123 -> 44.7579 | G123: Factura A19/743. Nº pedido 296 y 286
B124: 2019-04-30 | C124: PAPELBASK | D124: =UPPER(LOOKUP(C124,'[1]PROVEEDORES COMPRAS'!B:B,'[1]PROVEEDORES COMPRAS'!A:A)) -> B95063723 | E124: 44.94 | F124: =1.21*E124 -> 54.3774 | G124: Factura A19/1026. Nº pedido 290
B125: 2019-04-30 | C125: PAPELBASK | D125: =UPPER(LOOKUP(C125,'[1]PROVEEDORES COMPRAS'!B:B,'[1]PROVEEDORES COMPRAS'!A:A)) -> B95063723 | E125: 46.03 | F125: =1.21*E125 -> 55.6963 | G125: Factura A19/744. Nº pedido 297
B126: 2019-04-30 | C126: SERVIRREINER | D126: =UPPER(LOOKUP(C126,'[1]PROVEEDORES COMPRAS'!B:B,'[1]PROVEEDORES COMPRAS'!A:A)) -> B95063723 | E126: 48.4 | F126: =1.1*E126 -> 53.24 | G126: Factura 743804
B127: 2019-04-30 | C127: PAPELBASK | D127: =UPPER(LOOKUP(C127,'[1]PROVEEDORES COMPRAS'!B:B,'[1]PROVEEDORES COMPRAS'!A:A)) -> B95063723 | E127: 59.57 | F127: =1.21*E127 -> 72.0797 | G127: Factura A19/747 Nº pedido 319
B128: 2019-04-30 | C128: PAPELBASK | D128: =UPPER(LOOKUP(C128,'[1]PROVEEDORES COMPRAS'!B:B,'[1]PROVEEDORES COMPRAS'!A:A)) -> B95063723 | E128: 62.48 | F128: =1.21*E128 -> 75.6008 | G128: Factura A19/748 Nº pedido 316
B129: 2019-04-30 | C129: SERVIRREINER | D129: =UPPER(LOOKUP(C129,'[1]PROVEEDORES COMPRAS'!B:B,'[1]PROVEEDORES COMPRAS'!A:A)) -> B95063723 | E129: 72.6 | F129: =1.1*E129 -> 79.86 | G129: Factura 744796
B130: 2019-04-30 | C130: UGARTE AMO, JON (IMPRENTA) | D130: =UPPER(LOOKUP(C130,'[1]PROVEEDORES COMPRAS'!B:B,'[1]PROVEEDORES COMPRAS'!A:A)) -> B95063723 | E130: 74 | F130: =1.21*E130 -> 89.54 | G130: Factura 13123.
B131: 2019-04-30 | C131: INDUFER | D131: =UPPER(LOOKUP(C131,'[1]PROVEEDORES COMPRAS'!B:B,'[1]PROVEEDORES COMPRAS'!A:A)) -> B95445508 | E131: 74.58 | F131: =1.21*E131 -> 90.2418 | G131: Factura 1900435 Nos pedidos 359 y 363
B132: 2019-04-30 | C132: SETLAND SL | D132: =UPPER(LOOKUP(C132,'[1]PROVEEDORES COMPRAS'!B:B,'[1]PROVEEDORES COMPRAS'!A:A)) -> B95063723 | E132: 97.2 | F132: =1.21*E132 -> 117.612 | G132: Factura 66822.
B133: 2019-04-30 | C133: SUPERMERCADOS ERCORECA SA | D133: =UPPER(LOOKUP(C133,'[1]PROVEEDORES COMPRAS'!B:B,'[1]PROVEEDORES COMPRAS'!A:A)) -> B95063723 | E133: 113.54 | F133: =1.21*E133 -> 137.3834 | G133: Factura 850100519
B134: 2019-04-30 | C134: AQUAN SERVIREINER SL | D134: =UPPER(LOOKUP(C134,'[1]PROVEEDORES COMPRAS'!B:B,'[1]PROVEEDORES COMPRAS'!A:A)) ->  | E134: 114.85 | F134: =1.1*E134 -> 126.335 | G134: Factura 749099
B135: 2019-04-30 | C135: CAFÉ BAQUE SL | D135: =UPPER(LOOKUP(C135,'[1]PROVEEDORES COMPRAS'!B:B,'[1]PROVEEDORES COMPRAS'!A:A)) ->  | E135: 121.6 | F135: =1.1*E135 -> 133.76 | G135: Factura 90200209
B136: 2019-04-30 | C136: PAPELBASK | D136: =UPPER(LOOKUP(C136,'[1]PROVEEDORES COMPRAS'!B:B,'[1]PROVEEDORES COMPRAS'!A:A)) -> B95063723 | E136: 126.45 | F136: =1.21*E136 -> 153.0045 | G136: Factura A19/1101. Nº pedido 315 y 326
B137: 2019-04-30 | C137: ELECTRO VIZCAYA | D137: =UPPER(LOOKUP(C137,'[1]PROVEEDORES COMPRAS'!B:B,'[1]PROVEEDORES COMPRAS'!A:A)) ->  | E137: 129.38 | F137: =1.21*E137 -> 156.5498 | G137: Factura 207139 Nº pedido 348
B138: 2019-04-30 | C138: PAPELBASK | D138: =UPPER(LOOKUP(C138,'[1]PROVEEDORES COMPRAS'!B:B,'[1]PROVEEDORES COMPRAS'!A:A)) -> B95063723 | E138: 147.15 | F138: =1.21*E138 -> 178.0515 | G138: Factura A19/742 Nos. Pedidos 347 y 354
B139: 2019-04-30 | C139: INDUFER | D139: =UPPER(LOOKUP(C139,'[1]PROVEEDORES COMPRAS'!B:B,'[1]PROVEEDORES COMPRAS'!A:A)) -> B95445508 | E139: 173.58 | F139: =1.21*E139 -> 210.0318 | G139: Factura 1900440 (no pedido por compras)
B140: 2019-04-30 | C140: SUPERMERCADOS ERCORECA SA | D140: =UPPER(LOOKUP(C140,'[1]PROVEEDORES COMPRAS'!B:B,'[1]PROVEEDORES COMPRAS'!A:A)) -> B95063723 | E140: 182.51 | F140: =1.1*E140 -> 200.761 | G140: Factura 850110519
B141: 2019-04-30 | C141: INDUFER | D141: =UPPER(LOOKUP(C141,'[1]PROVEEDORES COMPRAS'!B:B,'[1]PROVEEDORES COMPRAS'!A:A)) -> B95445508 | E141: 205.44 | F141: =1.21*E141 -> 248.5824 | G141: Factura 1900436 Nos. Pedidos 344 y 357
B142: 2019-04-30 | C142: UGARTE AMO, JON (IMPRENTA) | D142: =UPPER(LOOKUP(C142,'[1]PROVEEDORES COMPRAS'!B:B,'[1]PROVEEDORES COMPRAS'!A:A)) -> B95063723 | E142: 229 | F142: 277.09 | G142: Factura 13114. Nº pedido 299
B143: 2019-04-30 | C143: GALDESA SL | D143: =UPPER(LOOKUP(C143,'[1]PROVEEDORES COMPRAS'!B:B,'[1]PROVEEDORES COMPRAS'!A:A)) -> B95445508 | E143: 290.12 | F143: 351.0452 | G143: Factura 265506. Nº pedido 360
B144: 2019-04-30 | C144: UGARTE AMO, JON (IMPRENTA) | D144: =UPPER(LOOKUP(C144,'[1]PROVEEDORES COMPRAS'!B:B,'[1]PROVEEDORES COMPRAS'!A:A)) -> B95063723 | E144: 305.5 | F144: 369.655 | G144: Factura 13109. Nº pedido 287
B145: 2019-04-30 | C145: PAPELBASK | D145: =UPPER(LOOKUP(C145,'[1]PROVEEDORES COMPRAS'!B:B,'[1]PROVEEDORES COMPRAS'!A:A)) -> B95063723 | E145: 313.1 | F145: 378.851 | G145: Factura A19/741. Nº pedido 291 y 355
B146: 2019-04-30 | C146: GALDESA SL | D146: =UPPER(LOOKUP(C146,'[1]PROVEEDORES COMPRAS'!B:B,'[1]PROVEEDORES COMPRAS'!A:A)) -> B95445508 | E146: 327.9 | F146: 396.759 | G146: Factura 265514 Nº pedido 364
B147: 2019-04-30 | C147: PAPELBASK | D147: =UPPER(LOOKUP(C147,'[1]PROVEEDORES COMPRAS'!B:B,'[1]PROVEEDORES COMPRAS'!A:A)) -> B95063723 | E147: 375.36 | F147: 454.1856 | G147: Factura A19/751. Nº pedido 321
B148: 2019-04-30 | C148: GALDESA SL | D148: =UPPER(LOOKUP(C148,'[1]PROVEEDORES COMPRAS'!B:B,'[1]PROVEEDORES COMPRAS'!A:A)) -> B95445508 | E148: 472.38 | F148: 571.5798 | G148: Factura 265510. Nº pedido 358
B149: 2019-04-30 | C149: MADERAS LOBERA | D149: =UPPER(LOOKUP(C149,'[1]PROVEEDORES COMPRAS'!B:B,'[1]PROVEEDORES COMPRAS'!A:A)) -> B95063723 | E149: 728 | F149: 880.88 | G149: Factura 1902534 Nº pedido 340
B150: 2019-04-30 | C150: AGROJARDIN ASTIKENE SL | D150: =UPPER(LOOKUP(C150,'[1]PROVEEDORES COMPRAS'!B:B,'[1]PROVEEDORES COMPRAS'!A:A)) ->  | E150: 736.9 | F150: 891.649 | G150: Factura 19/01218 (no pedido por compras)
B151: 2019-04-30 | C151: GRAKONOR | D151: =UPPER(LOOKUP(C151,'[1]PROVEEDORES COMPRAS'!B:B,'[1]PROVEEDORES COMPRAS'!A:A)) -> B95445508 | E151: 1351.5 | F151: 1635.315 | G151: Factura 19047 Nº pedido 416
B152: 2019-04-24 | C152: CEPRENOR | D152: =UPPER(LOOKUP(C152,'[1]PROVEEDORES COMPRAS'!B:B,'[1]PROVEEDORES COMPRAS'!A:A)) ->  | E152: 123.22 | F152: 149.0962 | G152: Factura 19C0266 (no pedido por compras)
B153: 2019-04-24 | C153: CEPRENOR | D153: =UPPER(LOOKUP(C153,'[1]PROVEEDORES COMPRAS'!B:B,'[1]PROVEEDORES COMPRAS'!A:A)) ->  | E153: 154.31 | F153: 186.7151 | G153: Factura 19C0267 (no pedido por compras)
B154: 2019-04-24 | C154: CEPRENOR | D154: =UPPER(LOOKUP(C154,'[1]PROVEEDORES COMPRAS'!B:B,'[1]PROVEEDORES COMPRAS'!A:A)) ->  | E154: 1063.98 | F154: 1287.4158 | G154: Factura 19C0265 Nº pedido 305/19
B155: 2019-04-23 | C155: BZ2 ALAVA | D155: B01305093 | E155: 1126.97 | F155: 1363.6337 | G155: Factura 53 (pedido tlfono Matxalen)
B156: 2019-04-17 | C156: HARESI SERVICIOS INFORMATICOS | D156: =UPPER(LOOKUP(C156,'[1]PROVEEDORES COMPRAS'!B:B,'[1]PROVEEDORES COMPRAS'!A:A)) -> B95445508 | E156: 7734 | F156: 9358.14 | G156: Factura 3. Nº pedido 327
B157: 2019-04-15 | C157: ELECTRO VIZCAYA | D157: =UPPER(LOOKUP(C157,'[1]PROVEEDORES COMPRAS'!B:B,'[1]PROVEEDORES COMPRAS'!A:A)) ->  | E157: 18.46 | F157: 22.3366 | G157: Factura 206449. Nº pedido 303
B158: 2019-04-15 | C158: ELECTRO VIZCAYA | D158: =UPPER(LOOKUP(C158,'[1]PROVEEDORES COMPRAS'!B:B,'[1]PROVEEDORES COMPRAS'!A:A)) ->  | E158: 21.89 | F158: 26.4869 | G158: Factura 206452
B159: 2019-04-15 | C159: GRUPO LEIOA XXI, SL | D159: =UPPER(LOOKUP(C159,'[1]PROVEEDORES COMPRAS'!B:B,'[1]PROVEEDORES COMPRAS'!A:A)) -> B95445508 | E159: 24.45 | F159: 29.5845 | G159: Factura 704896 No tiene nº pedido compras
B160: 2019-04-15 | C160: INDUFER | D160: =UPPER(LOOKUP(C160,'[1]PROVEEDORES COMPRAS'!B:B,'[1]PROVEEDORES COMPRAS'!A:A)) -> B95445508 | E160: 36.67 | F160: 44.3707 | G160: Factura 1900392. Nº pedido 278 y 336
B161: 2019-04-15 | C161: INDUFER | D161: =UPPER(LOOKUP(C161,'[1]PROVEEDORES COMPRAS'!B:B,'[1]PROVEEDORES COMPRAS'!A:A)) -> B95445508 | E161: 80.63 | F161: 97.5623 | G161: Factura 1900394. Nº pedido 332 y 338
B162: 2019-04-15 | C162: ELECTRO VIZCAYA | D162: =UPPER(LOOKUP(C162,'[1]PROVEEDORES COMPRAS'!B:B,'[1]PROVEEDORES COMPRAS'!A:A)) ->  | E162: 110.72 | F162: 133.9712 | G162: Factura 206450. Nº pedido 304
B163: 2019-04-15 | C163: ELECTRO VIZCAYA | D163: =UPPER(LOOKUP(C163,'[1]PROVEEDORES COMPRAS'!B:B,'[1]PROVEEDORES COMPRAS'!A:A)) ->  | E163: 116.75 | F163: 141.2675 | G163: Factura 206451. Nº pedido 323
B164: 2019-04-15 | C164: GRUPO LEIOA XXI, SL | D164: =UPPER(LOOKUP(C164,'[1]PROVEEDORES COMPRAS'!B:B,'[1]PROVEEDORES COMPRAS'!A:A)) -> B95445508 | E164: 166.86 | F164: 201.9006 | G164: Factura 704897 Nº pedido 328
B165: 2019-04-15 | C165: GALDESA SL | D165: =UPPER(LOOKUP(C165,'[1]PROVEEDORES COMPRAS'!B:B,'[1]PROVEEDORES COMPRAS'!A:A)) -> B95445508 | E165: 387.37 | F165: 468.7177 | G165: Factura 264217. Nº pedido 329
B166: 2019-04-15 | C166: GALDESA SL | D166: =UPPER(LOOKUP(C166,'[1]PROVEEDORES COMPRAS'!B:B,'[1]PROVEEDORES COMPRAS'!A:A)) -> B95445508 | E166: 425.93 | F166: 515.3753 | G166: Factura 264213. Nº pedido 311
B167: 2019-04-15 | C167: INDUFER | D167: =UPPER(LOOKUP(C167,'[1]PROVEEDORES COMPRAS'!B:B,'[1]PROVEEDORES COMPRAS'!A:A)) -> B95445508 | E167: 673.57 | F167: 815.0197 | G167: Factura 1900393. 220, 312, 263, 284, 312, 344
B168: 2019-04-12 | C168: KARYKER | D168: =UPPER(LOOKUP(C168,'[1]PROVEEDORES COMPRAS'!B:B,'[1]PROVEEDORES COMPRAS'!A:A)) -> B95063723 | E168: 26.16 | F168: 31.6536 | G168: Factura 9/190734
B169: 2019-04-12 | C169: KARYKER | D169: =UPPER(LOOKUP(C169,'[1]PROVEEDORES COMPRAS'!B:B,'[1]PROVEEDORES COMPRAS'!A:A)) -> B95063723 | E169: 45 | F169: 54.45 | G169: Factura 9/190737 Nº pedido 335
B170: 2019-04-12 | C170: KARYKER | D170: =UPPER(LOOKUP(C170,'[1]PROVEEDORES COMPRAS'!B:B,'[1]PROVEEDORES COMPRAS'!A:A)) -> B95063723 | E170: 59 | F170: 71.39 | G170: Factura 9/190736
B171: 2019-04-12 | C171: HARESI SERVICIOS INFORMATICOS | D171: =UPPER(LOOKUP(C171,'[1]PROVEEDORES COMPRAS'!B:B,'[1]PROVEEDORES COMPRAS'!A:A)) -> B95445508 | E171: 61.55 | F171: 74.4755 | G171: Factura 20192906 Nº pedido 322
B172: 2019-04-12 | C172: HARESI SERVICIOS INFORMATICOS | D172: =UPPER(LOOKUP(C172,'[1]PROVEEDORES COMPRAS'!B:B,'[1]PROVEEDORES COMPRAS'!A:A)) -> B95445508 | E172: 133.3 | F172: 161.293 | G172: Factura 20192904
B173: 2019-04-12 | C173: HARESI SERVICIOS INFORMATICOS | D173: =UPPER(LOOKUP(C173,'[1]PROVEEDORES COMPRAS'!B:B,'[1]PROVEEDORES COMPRAS'!A:A)) -> B95445508 | E173: 290.8 | F173: 351.868 | G173: Factura 20192905
B174: 2019-04-12 | C174: HARESI SERVICIOS INFORMATICOS | D174: =UPPER(LOOKUP(C174,'[1]PROVEEDORES COMPRAS'!B:B,'[1]PROVEEDORES COMPRAS'!A:A)) -> B95445508 | E174: 332.6 | F174: 402.446 | G174: Factura 20192902 Nº pedido 293
B175: 2019-04-12 | C175: HARESI SERVICIOS INFORMATICOS | D175: =UPPER(LOOKUP(C175,'[1]PROVEEDORES COMPRAS'!B:B,'[1]PROVEEDORES COMPRAS'!A:A)) -> B95445508 | E175: 505.05 | F175: 611.1105 | G175: Factura 20192903. Nº pedido 314
B176: 2019-04-12 | C176: KARYKER | D176: =UPPER(LOOKUP(C176,'[1]PROVEEDORES COMPRAS'!B:B,'[1]PROVEEDORES COMPRAS'!A:A)) -> B95063723 | E176: 1629.75 | F176: 1971.9975 | G176: Factura 9/190735
B177: 2019-04-10 | C177: KARYKER | D177: =UPPER(LOOKUP(C177,'[1]PROVEEDORES COMPRAS'!B:B,'[1]PROVEEDORES COMPRAS'!A:A)) -> B95063723 | E177: 59 | F177: 71.39 | G177: Factura 9/190714
B178: 2019-04-10 | C178: KARYKER | D178: =UPPER(LOOKUP(C178,'[1]PROVEEDORES COMPRAS'!B:B,'[1]PROVEEDORES COMPRAS'!A:A)) -> B95063723 | E178: 59 | F178: 71.39 | G178: Factura 9/190712
B179: 2019-04-10 | C179: EUSKAINSA | D179: =UPPER(LOOKUP(C179,'[1]PROVEEDORES COMPRAS'!B:B,'[1]PROVEEDORES COMPRAS'!A:A)) ->  | E179: 75 | F179: 90.75 | G179: Factura A/21492. Nº pedido 334
B180: 2019-04-10 | C180: KARYKER | D180: =UPPER(LOOKUP(C180,'[1]PROVEEDORES COMPRAS'!B:B,'[1]PROVEEDORES COMPRAS'!A:A)) -> B95063723 | E180: 556.76 | F180: 673.6796 | G180: Fctura 9/190713 Nº pedido 298
B181: 2019-04-04 | C181: DINOF | D181: =UPPER(LOOKUP(C181,'[1]PROVEEDORES COMPRAS'!B:B,'[1]PROVEEDORES COMPRAS'!A:A)) ->  | E181: 693.75 | F181: 839.4375 | G181: Factura 190.777 Nº pedido 228
B182: 2019-04-01 | C182: HOTEL HOGAR BIZKAIA SL | D182: =UPPER(LOOKUP(C182,'[1]PROVEEDORES COMPRAS'!B:B,'[1]PROVEEDORES COMPRAS'!A:A)) -> B95445508 | E182: 47.61 | F182: 57.6081 | G182: Factura 901260. Nº pedido 215

Sheet Aux (hidden)
A1: OBRA | B1: 12 MESES | C1: 14563525H
A2: PRIVADO | B2: 11 MESES | C2: A28122125
A3: SERVICIO | B3: 10 MESES | C3: A48092985
A4: SUMINISTRO | B4: 9 MESES | C4: A48093926
B5: 8 MESES | C5: A48115000
B6: 7 MESES | C6: A48189526
B7: 6 MESES | C7: A48210553
B8: 5 MESES | C8: B01305093
B9: 4 MESES | C9: B01477322
B10: 3 MESES | C10: B48182174
B11: 2 MESES | C11: B48252472
B12: 1 MES | C12: B48253801
B13: PUNTUAL | C13: B48303671
C14: B48484166
C15: B48506612
C16: B48785810
C17: B48919708
C18: B48943013
C19: B71034557
C20: B84198134
C21: B95018628
C22: B95063517
C23: B95144119
C24: B95167060
C25: B95200812
C26: B95276515
C27: B95445508
C28: B95583340
C29: B95698619
C30: B95730255
